NUMERO_MANDATO;RIGA_MANDATO;IMPORTO_RIGA;IMPORTO_MANDATO;BENEFICIARIO;CIG;TITOLO_PAGAMENTO;DATA_MANDATO;CAPITOLO;ARTICOLO;NUMERO_IMPEGNO;TITOLO;DESCR_TITOLO;LIVELLO_II;DESCR_LIVELLO_II;LIVELLO_III;DESCR_LIVELLO_III;LIVELLO_IV;DESCR_LIVELLO_IV;LIVELLO_V;DESCR_LIVELLO_V;DATA_PAG_EFF;
603;1;"921,97";"921,97";ISTITUTO PER IL CREDITO SPORTIVO; ;"Quota  Capitale  Ammortam. Mutuo a carico ente di       41.488,55 x Anno 2017";22-06-2017;5855;0;13;1;Spese correnti;7;Interessi passivi;5;Interessi su Mutui e altri finanziamenti a medio lungo termine;4;Interessi passivi su finanziamenti a medio lungo termine a Imprese;3;Interessi passivi a Cassa Depositi e Prestiti SPA su mutui e altri finanziamenti a medio lungo termine;2017-06-22;
604;1;"166,32";"166,32";ISTITUTO PER IL CREDITO SPORTIVO; ;"Quota  Interesse Ammortam. Mutuo a carico ente di       41.488,55 x Anno 2017";22-06-2017;4777;0;21;1;Spese correnti;7;Interessi passivi;5;Interessi su Mutui e altri finanziamenti a medio lungo termine;4;Interessi passivi su finanziamenti a medio lungo termine a Imprese;3;Interessi passivi a Cassa Depositi e Prestiti SPA su mutui e altri finanziamenti a medio lungo termine;2017-06-22;
605;1;"847,22";"847,22";FINLOMBARDA S.p.A. Gesione Autonoma Fondi Regionali; ;"Quota  Capitale  Ammortam. Mutuo a carico ente di       41.488,55 x Anno 2017";22-06-2017;5855;0;13;1;Spese correnti;7;Interessi passivi;5;Interessi su Mutui e altri finanziamenti a medio lungo termine;4;Interessi passivi su finanziamenti a medio lungo termine a Imprese;3;Interessi passivi a Cassa Depositi e Prestiti SPA su mutui e altri finanziamenti a medio lungo termine;2017-06-22;
606;1;"52,25";"52,25";FINLOMBARDA S.p.A. Gesione Autonoma Fondi Regionali; ;"Quota  Interesse Ammortam. Mutuo a carico ente di       41.488,55 x Anno 2017";22-06-2017;4777;0;21;1;Spese correnti;7;Interessi passivi;5;Interessi su Mutui e altri finanziamenti a medio lungo termine;4;Interessi passivi su finanziamenti a medio lungo termine a Imprese;3;Interessi passivi a Cassa Depositi e Prestiti SPA su mutui e altri finanziamenti a medio lungo termine;2017-06-22;
607;1;"13.852,03";"13.852,03";CASSA DD.PP.; ;"Quota  Interesse Ammortam. Mutuo a carico ente di      783.659,36 x Anno 2017";22-06-2017;5855;0;23;1;Spese correnti;7;Interessi passivi;5;Interessi su Mutui e altri finanziamenti a medio lungo termine;4;Interessi passivi su finanziamenti a medio lungo termine a Imprese;3;Interessi passivi a Cassa Depositi e Prestiti SPA su mutui e altri finanziamenti a medio lungo termine;2017-06-22;
608;1;"807,80";"807,80";MEF - MUTUI; ;"Quota  Interesse Ammortam. Mutuo a carico ente di       61.042,99 x Anno 2017";22-06-2017;5855;0;22;1;Spese correnti;7;Interessi passivi;5;Interessi su Mutui e altri finanziamenti a medio lungo termine;4;Interessi passivi su finanziamenti a medio lungo termine a Imprese;3;Interessi passivi a Cassa Depositi e Prestiti SPA su mutui e altri finanziamenti a medio lungo termine;2017-06-22;
609;1;"1.104,44";"1.104,44";MEF - MUTUI; ;"Quota  Interesse Ammortam. Mutuo a carico ente di      129.491,31 x Anno 2017";22-06-2017;3250;0;17;1;Spese correnti;7;Interessi passivi;5;Interessi su Mutui e altri finanziamenti a medio lungo termine;4;Interessi passivi su finanziamenti a medio lungo termine a Imprese;3;Interessi passivi a Cassa Depositi e Prestiti SPA su mutui e altri finanziamenti a medio lungo termine;2017-06-22;
610;1;"892,87";"892,87";MEF - MUTUI; ;"Quota  Interesse Ammortam. Mutuo a carico ente di       65.315,90 x Anno 2017";22-06-2017;4775;0;20;1;Spese correnti;7;Interessi passivi;5;Interessi su Mutui e altri finanziamenti a medio lungo termine;4;Interessi passivi su finanziamenti a medio lungo termine a Imprese;3;Interessi passivi a Cassa Depositi e Prestiti SPA su mutui e altri finanziamenti a medio lungo termine;2017-06-22;
611;1;"3.703,71";"3.703,71";MEF - MUTUI; ;"Quota  Interesse Ammortam. Mutuo a carico ente di      288.703,54 x Anno 2017";22-06-2017;4446;0;19;1;Spese correnti;7;Interessi passivi;5;Interessi su Mutui e altri finanziamenti a medio lungo termine;4;Interessi passivi su finanziamenti a medio lungo termine a Imprese;4;Interessi passivi a Cassa Depositi e Prestiti - Gestione Tesoro su mutui e altri finanziamenti a medio lungo termine;2017-06-22;
612;1;"334,10";"334,10";MEF - MUTUI; ;"Quota  Interesse Ammortam. Mutuo a carico ente di      315.956,69 x Anno 2017";22-06-2017;1722;0;16;1;Spese correnti;7;Interessi passivi;5;Interessi su Mutui e altri finanziamenti a medio lungo termine;4;Interessi passivi su finanziamenti a medio lungo termine a Imprese;3;Interessi passivi a Cassa Depositi e Prestiti SPA su mutui e altri finanziamenti a medio lungo termine;2017-06-22;
613;1;"1.351,85";"1.351,85";MEF - MUTUI; ;"Quota  Interesse Ammortam. Mutuo a carico ente di      111.970,13 x Anno 2017";22-06-2017;1723;0;12;1;Spese correnti;7;Interessi passivi;5;Interessi su Mutui e altri finanziamenti a medio lungo termine;4;Interessi passivi su finanziamenti a medio lungo termine a Imprese;3;Interessi passivi a Cassa Depositi e Prestiti SPA su mutui e altri finanziamenti a medio lungo termine;2017-06-22;
614;1;"573,60";"573,60";MEF - MUTUI; ;"Quota  Interesse Ammortam. Mutuo a carico ente di      245.785,38 x Anno 2017";22-06-2017;4248;0;18;1;Spese correnti;7;Interessi passivi;5;Interessi su Mutui e altri finanziamenti a medio lungo termine;4;Interessi passivi su finanziamenti a medio lungo termine a Imprese;4;Interessi passivi a Cassa Depositi e Prestiti - Gestione Tesoro su mutui e altri finanziamenti a medio lungo termine;2017-06-22;
615;1;"2.202,23";"2.202,23";MEF - MUTUI; ;"Quota  Interesse Ammortam. Mutuo a carico ente di      315.956,69 x Anno 2017";22-06-2017;1722;0;16;1;Spese correnti;7;Interessi passivi;5;Interessi su Mutui e altri finanziamenti a medio lungo termine;4;Interessi passivi su finanziamenti a medio lungo termine a Imprese;3;Interessi passivi a Cassa Depositi e Prestiti SPA su mutui e altri finanziamenti a medio lungo termine;2017-06-22;
616;1;"178,06";"178,06";MEF - MUTUI; ;"Quota  Interesse Ammortam. Mutuo a carico ente di      111.970,13 x Anno 2017";22-06-2017;1723;0;12;1;Spese correnti;7;Interessi passivi;5;Interessi su Mutui e altri finanziamenti a medio lungo termine;4;Interessi passivi su finanziamenti a medio lungo termine a Imprese;3;Interessi passivi a Cassa Depositi e Prestiti SPA su mutui e altri finanziamenti a medio lungo termine;2017-06-22;
617;1;"2.580,67";"2.580,67";MEF - MUTUI; ;"Quota  Interesse Ammortam. Mutuo a carico ente di      245.785,38 x Anno 2017";22-06-2017;4248;0;18;1;Spese correnti;7;Interessi passivi;5;Interessi su Mutui e altri finanziamenti a medio lungo termine;4;Interessi passivi su finanziamenti a medio lungo termine a Imprese;4;Interessi passivi a Cassa Depositi e Prestiti - Gestione Tesoro su mutui e altri finanziamenti a medio lungo termine;2017-06-22;
619;1;"132,00";"132,00";PREFETTURA DI BERGAMO; ;ACQUISTO N. 300 CARTE IDENTITA' PER UFFICIO ANAGRAFE;04-07-2017;214;0;232;1;Spese correnti;3;Acquisto di beni e servizi;1;Acquisto di beni;2;Altri beni di consumo;1;"Carta, cancelleria e stampati";2017-07-04;
620;1;"250,00";"250,00";TAGLIAFERRI CLAUDIA; ;PRATICA TECNICA ALLA CONSERVATORIA DI BERGAMO;05-07-2017;295;0;199;1;Spese correnti;3;Acquisto di beni e servizi;2;Acquisto di servizi;99;Altri servizi;999;Altri servizi diversi n.a.c.;2017-07-05;
624;1;"98,60";"98,60";ZANELLA LUCA;Z7B1EB4D5E;ACCONTO Fatt.n. 10E  del 20/06/2017 ND;12-07-2017;1725;0;227;1;Spese correnti;3;Acquisto di beni e servizi;2;Acquisto di servizi;99;Altri servizi;999;Altri servizi diversi n.a.c.;2017-07-12;
625;1;"378,20";"378,20";ZANELLA LUCA;Z7B1EB4D5E;ACCONTO Fatt.n. 10E  del 20/06/2017 ND;12-07-2017;1620;0;226;1;Spese correnti;3;Acquisto di beni e servizi;1;Acquisto di beni;2;Altri beni di consumo;1;"Carta, cancelleria e stampati";2017-07-12;
626;1;"378,20";"378,20";ZANELLA LUCA;Z7B1EB4D5E;SALDO Fatt.n. 10E  del 20/06/2017 ND;12-07-2017;1720;0;225;1;Spese correnti;3;Acquisto di beni e servizi;1;Acquisto di beni;2;Altri beni di consumo;999;Altri beni e materiali di consumo n.a.c.;2017-07-12;
627;1;"55,90";"55,90";VEZZOLI COPPE E TROFEI;Z261F17A81;SALDO Fatt.n. FATTPA 18_17  del 22/06/2017 FORNITURA TARGA PER ATLETA;12-07-2017;245;0;230;1;Spese correnti;3;Acquisto di beni e servizi;1;Acquisto di beni;2;Altri beni di consumo;999;Altri beni e materiali di consumo n.a.c.;2017-07-12;
628;1;"300,40";"300,40";UNIACQUE SPA; ;SALDO Fatt.n. 201720004293  del 15/06/2017 FORNITURA ACQUA POTABILE;12-07-2017;1720;0;228;1;Spese correnti;3;Acquisto di beni e servizi;1;Acquisto di beni;2;Altri beni di consumo;999;Altri beni e materiali di consumo n.a.c.;2017-07-12;
629;1;"220,79";"220,79";UNIACQUE SPA; ;SALDO Fatt.n. 201720004290  del 15/06/2017 FORNITURA ACQUA POTABILE;12-07-2017;932;0;111;1;Spese correnti;3;Acquisto di beni e servizi;2;Acquisto di servizi;5;Utenze e canoni;5;Acqua;2017-07-12;
630;1;"34,66";"34,66";UNIACQUE SPA; ;SALDO Fatt.n. 201720004292  del 15/06/2017 FORNITURA ACQUA POTABILE;12-07-2017;932;0;111;1;Spese correnti;3;Acquisto di beni e servizi;2;Acquisto di servizi;5;Utenze e canoni;5;Acqua;2017-07-12;
631;1;"24,08";"24,08";UNIACQUE SPA; ;SALDO Fatt.n. 201720004291  del 15/06/2017 FORNITURA ACQUA POTABILE;12-07-2017;932;0;111;1;Spese correnti;3;Acquisto di beni e servizi;2;Acquisto di servizi;5;Utenze e canoni;5;Acqua;2017-07-12;
632;1;"186,72";"186,72";UNIACQUE SPA; ;SALDO Fatt.n. 201720004295  del 15/06/2017 FORNITURA ACQUA POTABILE;12-07-2017;932;0;111;1;Spese correnti;3;Acquisto di beni e servizi;2;Acquisto di servizi;5;Utenze e canoni;5;Acqua;2017-07-12;
633;1;"173,09";"173,09";UNIACQUE SPA; ;SALDO Fatt.n. 201720004294  del 15/06/2017 FORNITURA ACQUA POTABILE;12-07-2017;932;0;111;1;Spese correnti;3;Acquisto di beni e servizi;2;Acquisto di servizi;5;Utenze e canoni;5;Acqua;2017-07-12;
634;1;"80,70";"80,70";UNIACQUE SPA; ;SALDO Fatt.n. 201720004296  del 15/06/2017 FORNITURA ACQUA POTABILE;12-07-2017;932;0;111;1;Spese correnti;3;Acquisto di beni e servizi;2;Acquisto di servizi;5;Utenze e canoni;5;Acqua;2017-07-12;
635;1;"23,10";"23,10";UNIACQUE SPA; ;SALDO Fatt.n. 201720004298  del 15/06/2017 FORNITURA ACQUA POTABILE;12-07-2017;932;0;111;1;Spese correnti;3;Acquisto di beni e servizi;2;Acquisto di servizi;5;Utenze e canoni;5;Acqua;2017-07-12;
636;1;"23,03";"23,03";UNIACQUE SPA; ;SALDO Fatt.n. 201720004297  del 15/06/2017 FORNITURA ACQUA POTABILE;12-07-2017;932;0;111;1;Spese correnti;3;Acquisto di beni e servizi;2;Acquisto di servizi;5;Utenze e canoni;5;Acqua;2017-07-12;
637;1;"1.046,48";"1.046,48";SIBESTAR s.r.l.;ZC71E8189C;SALDO Fatt.n. 286/FT  del 30/06/2017 Fattura Immediata FORNITURA SEGNALETICA VERTICALE;12-07-2017;6343;0;187;2;Spese in conto capitale;2;Investimenti fissi lordi e acquisto di terreni;1;Beni materiali;9;Beni immobili;12;Infrastrutture stradali;2017-07-12;
638;1;"307,71";"307,71";MACELLERIA PARIS LUCA;ZF61B0A649;SALDO Fatt.n. 12/PA  del 29/06/2017 Cod. cig: ZF61B0A649 FORNITURA DERRATE ALIMENTARI C/O MENSA SCOLASTICA GIUGNO 2017;12-07-2017;1930;0;35;1;Spese correnti;3;Acquisto di beni e servizi;1;Acquisto di beni;2;Altri beni di consumo;11;Generi alimentari;2017-07-12;
639;1;"788,07";"788,07";P. A. CONSULTING; ;SALDO Fatt.n. 20/136  del 03/07/2017 GESTIONE PAGHE 2 TRIMESTRE 2017;12-07-2017;214;0;45;1;Spese correnti;3;Acquisto di beni e servizi;1;Acquisto di beni;2;Altri beni di consumo;1;"Carta, cancelleria e stampati";2017-07-12;
640;1;"0,12";"420,88";LEGGERE S.R.L.;Z541ABE500;ACCONTO Fatt.n. 10069  del 30/06/2017;12-07-2017;2230;0;154;1;Spese correnti;3;Acquisto di beni e servizi;1;Acquisto di beni;2;Altri beni di consumo;999;Altri beni e materiali di consumo n.a.c.;2017-07-12;
640;2;"420,76";"420,88";LEGGERE S.R.L.;Z541ABE500;ACCONTO Fatt.n. 10069  del 30/06/2017;12-07-2017;2230;0;154;1;Spese correnti;3;Acquisto di beni e servizi;1;Acquisto di beni;2;Altri beni di consumo;999;Altri beni e materiali di consumo n.a.c.;2017-07-12;
641;1;"43,29";"43,29";LEGGERE S.R.L.;Z541ABE500;SALDO Fatt.n. 10069  del 30/06/2017;12-07-2017;2230;0;233;1;Spese correnti;3;Acquisto di beni e servizi;1;Acquisto di beni;2;Altri beni di consumo;999;Altri beni e materiali di consumo n.a.c.;2017-07-12;
642;1;"192,09";"192,09";LA FORNERIA di Bertoletti M. & C. s.n.c.;ZC61B2953B;SALDO Fatt.n. 7 PA  del 30/06/2017 FATTURA P.A. FORNITURA DERRATE ALIMENTARI C/O MENSA SCOLASTICA GIUGNO 2017;12-07-2017;1930;0;33;1;Spese correnti;3;Acquisto di beni e servizi;1;Acquisto di beni;2;Altri beni di consumo;11;Generi alimentari;2017-07-12;
643;1;"797,87";"797,87";IL BOTTEGHINO di Guizzetti Federica (Salumeria Alimenta;ZF1B1 D81;SALDO Fatt.n. 5 P.A. 2017  del 31/05/2017 FORNITURA DERRATE ALIMENTARI MESE DI MAGGIO 2017;12-07-2017;1930;0;34;1;Spese correnti;3;Acquisto di beni e servizi;1;Acquisto di beni;2;Altri beni di consumo;11;Generi alimentari;2017-07-12;
644;1;"487,90";"487,90";STAZIONE SERVIZIO IP di Gualeni S.;ZF31CCE374;SALDO Fatt.n. 0000025/EL  del 30/06/2017 FORNITURA CARBURANTE NESE DI GIUGNO 2017;12-07-2017;1250;0;42;1;Spese correnti;3;Acquisto di beni e servizi;1;Acquisto di beni;2;Altri beni di consumo;2;"Carburanti, combustibili e lubrificanti";2017-07-12;
645;1;"600,50";"600,50";E.ON Energia S.p.A.;Z1F1EE2A79;SALDO Fatt.n. 40006480  del 03/07/2017 Le inviamo la bolletta relativa ai consumi del periodo dal 01/05/2017 al 31/05/2017 fornitura di gas PDR 01550000365420 SCUOLA PRIMARIA;12-07-2017;1720;0;210;1;Spese correnti;3;Acquisto di beni e servizi;1;Acquisto di beni;2;Altri beni di consumo;999;Altri beni e materiali di consumo n.a.c.;2017-07-12;
646;1;"393,77";"393,77";E.ON Energia S.p.A.;Z1F1EE2A79;SALDO Fatt.n. 40006481  del 03/07/2017 Le inviamo la bolletta relativa ai consumi del periodo dal 01/05/2017 al 31/05/2017 fornitura di gas PDR 01550000365820 SCUOLA DELL'INFANZIA;12-07-2017;1620;0;211;1;Spese correnti;3;Acquisto di beni e servizi;1;Acquisto di beni;2;Altri beni di consumo;1;"Carta, cancelleria e stampati";2017-07-12;
647;1;"638,59";"638,59";AERRE DI PASINELLI A. E CRETTI R SNC;ZB21B10F7F;SALDO Fatt.n. 6/PA  del 29/06/2017 CIG  FORNITURA DERRATE ALIMENTARI C/O MENSA SCOLASTICA GIUGNO 2017;12-07-2017;1930;0;147;1;Spese correnti;3;Acquisto di beni e servizi;1;Acquisto di beni;2;Altri beni di consumo;11;Generi alimentari;2017-07-12;
648;1;"6.954,00";"6.954,00";AESYS SPA;Z911E11681;SALDO Fatt.n. 2317000139  del 30/06/2017 Trattativa n? 146102 stipulata in Mepa il 08/04/2017 FORNITURA PANNELLO ELETTRONICO;12-07-2017;6343;0;155;2;Spese in conto capitale;2;Investimenti fissi lordi e acquisto di terreni;1;Beni materiali;9;Beni immobili;12;Infrastrutture stradali;2017-07-12;
649;1;"3.069,00";"3.069,00";AUTONOLEGGIO VALCALEPIO DI CRISTINELLI TOMASINO & C. S.;Z1D1B0458F;SALDO Fatt.n. 59/2017  del 01/07/2017 SERVIZIO TRASPORTO SCOLASTICO EFFETTUATO NEL MESE DI GIUGNO 2017 IVA DA VERSARE A CURA DEL CESSIONARIO O COMMITTENTE AI SENSI DELL'ART. 17TER DEL DPR 633/72 CONTO DEDICATO LEGGE N. 136/2010;12-07-2017;1941;0;53;1;Spese correnti;3;Acquisto di beni e servizi;2;Acquisto di servizi;99;Altri servizi;999;Altri servizi diversi n.a.c.;2017-07-12;
672;1;"20.022,02";"20.022,02";SIBESTAR s.r.l.;ZC71E8189C;SALDO Fatt.n. 291/FT  del 30/06/2017 Fattura Immediata LAVORI DI SEGNALETICA ORIZZONTALE E VERTICALE;17-07-2017;6343;0;187;2;Spese in conto capitale;2;Investimenti fissi lordi e acquisto di terreni;1;Beni materiali;9;Beni immobili;12;Infrastrutture stradali;2017-07-17;
673;1;"328,02";"328,02";DITTA SIGNORINI CLAUDIO;ZE71B10B27;SALDO Fatt.n. 11/01  del 28/06/2017 FATTURA N. 11/1 DEL 28.06.2017 FORNITURA DERRATE ALIMENTARI GIUGNO 2017;17-07-2017;1930;0;36;1;Spese correnti;3;Acquisto di beni e servizi;1;Acquisto di beni;2;Altri beni di consumo;11;Generi alimentari;2017-07-17;
674;1;"549,00";"549,00";IMPRESA EDILE NEGRINELLI DI NEGRINELLI BRUNO E TIZIANO;Z381EC4504;SALDO Fatt.n. 5/PA2017  del 10/07/2017 LAVORI PER MONTAGGIO E SMONTAGGIO SEGGI E TABELLONI ELETTORALI;17-07-2017;2500;0;202;1;Spese correnti;3;Acquisto di beni e servizi;1;Acquisto di beni;2;Altri beni di consumo;999;Altri beni e materiali di consumo n.a.c.;2017-07-17;
676;1;"20,00";"20,00";LA BOTTEGA DEL FIORE DI ZANNI GREGORIO;Z221DF21F6;ACCONTO Fatt.n. 2/PA  del 25/04/2017;17-07-2017;245;0;140;1;Spese correnti;3;Acquisto di beni e servizi;1;Acquisto di beni;2;Altri beni di consumo;999;Altri beni e materiali di consumo n.a.c.;2017-07-17;
677;1;"200,00";"200,00";LA BOTTEGA DEL FIORE DI ZANNI GREGORIO;ZF11E540A8;SALDO Fatt.n. 2/PA  del 25/04/2017;17-07-2017;245;0;165;1;Spese correnti;3;Acquisto di beni e servizi;1;Acquisto di beni;2;Altri beni di consumo;999;Altri beni e materiali di consumo n.a.c.;2017-07-17;
678;1;"1.000,81";"1.000,81";STUDIO LEGALE GIUDICI E BIGONI;Z901C771FF;SALDO Fatt.n. 2/2017/EL  del 03/07/2017 Acconto per la pratica GIBELLINI TAR -delibera n 69 del 17.11.11-     *36539*;17-07-2017;290;0;424;1;Spese correnti;3;Acquisto di beni e servizi;2;Acquisto di servizi;11;Prestazioni professionali e specialistiche;6;Patrocinio legale;2017-07-17;
679;1;"436,63";"436,63";GAMMA DARFO s.r.l. (forniture per uffici);Z441CCFFC8;SALDO Fatt.n. 164/PA  del 26/06/2017 Fattura accompagnatoria man./nol.PA CANONE NOLEGGIO FOTOCOPIATORE DAL 01.07.17 AL 30.09.17;17-07-2017;214;0;58;1;Spese correnti;3;Acquisto di beni e servizi;1;Acquisto di beni;2;Altri beni di consumo;1;"Carta, cancelleria e stampati";2017-07-17;
680;1;"315,86";"315,86";GAMMA DARFO s.r.l. (forniture per uffici);Z441CCFFC8;SALDO Fatt.n. 181/PA  del 26/06/2017 Fattura accompagnatoria man./nol.PA CANONE NOLOGGIO FOTOCOPIATORE E COPIE ECCEDENTI BIANCO/NERO;17-07-2017;214;0;58;1;Spese correnti;3;Acquisto di beni e servizi;1;Acquisto di beni;2;Altri beni di consumo;1;"Carta, cancelleria e stampati";2017-07-17;
681;1;"104,70";"104,70";GAMMA DARFO s.r.l. (forniture per uffici);ZDC1E88F06;SALDO Fatt.n. 198/PA  del 30/06/2017 Fattura accompagantoria rip PA INTERVENTO C/O LABORATORIO INFORMATICA SCUOLA A. FRUGONI DI SOLTO COLLINA;17-07-2017;1720;0;181;1;Spese correnti;3;Acquisto di beni e servizi;1;Acquisto di beni;2;Altri beni di consumo;999;Altri beni e materiali di consumo n.a.c.;2017-07-17;
682;1;"148,35";"148,35";GAMMA DARFO s.r.l. (forniture per uffici);Z441CCFFC8;SALDO Fatt.n. 197/PA  del 30/06/2017 Fattura pubbliche amministrazioni FORNITURA RISME DI CARTA PER UFFICI COMUNALI;17-07-2017;214;0;58;1;Spese correnti;3;Acquisto di beni e servizi;1;Acquisto di beni;2;Altri beni di consumo;1;"Carta, cancelleria e stampati";2017-07-17;
683;1;"1.299,70";"1.299,70";FRATERNITA' SISTEMI IMPRESA SOCIALE;ZF11D3CF9A;SALDO Fatt.n. 3/996  del 27/06/2017 PREST.SERVIZI;17-07-2017;276;0;84;1;Spese correnti;3;Acquisto di beni e servizi;2;Acquisto di servizi;3;Aggi di riscossione;999;Altri aggi di riscossione n.a.c.;2017-07-17;
684;1;"2.196,00";"2.196,00";E.S.C.O. COMUNI S.R.L.;Z881DD3F9C;SALDO Fatt.n. 3/PTC  del 30/06/2017 FATTURA EMESSA /TC (1)SERVIZIO DI MONITORAGGIO E AGGIORNAMENTO PAES - PATTO DEI SINDACI;17-07-2017;214;0;135;1;Spese correnti;3;Acquisto di beni e servizi;1;Acquisto di beni;2;Altri beni di consumo;1;"Carta, cancelleria e stampati";2017-07-17;
685;1;"1.903,20";"1.903,20";CANTAMESSE LEONE;Z941CB75A0;SALDO Fatt.n. 25  del 01/07/2017 SUPPORTO RESPONSABILE DEL SETTORE TECNICO N. 6 ACCONTO;17-07-2017;272;0;67;1;Spese correnti;3;Acquisto di beni e servizi;2;Acquisto di servizi;10;Consulenze;1;"Incarichi libero professionali di studi, ricerca e consulenza";2017-07-17;
686;1;"67.657,27";"67.657,27";COMUNITA MONTANA DEI LAGHI BERGAMASCHI; ;"GESTIONE ASSOCIATA DI FUNZIONI COMUNALI PER L'ORGANIZZAZIONE E LA GESTIONE SERVIZI RACCOLTA, AVVIO E SMALTIMENTO E RECUPERO DEI RIFIUTI URBANI - ANNO 2017 -";17-07-2017;3735;0;234;1;Spese correnti;4;Trasferimenti correnti;1;Trasferimenti correnti a Amministrazioni Pubbliche;2;Trasferimenti correnti a Amministrazioni Locali;6;Trasferimenti correnti a Comunit� Montane;2017-07-17;
687;1;"608,05";"608,05";"COOPERATIVA SOCIALE SEBINA SOC. COOP. a R.L." - ONLUS;Z5A1B0D962;SALDO Fatt.n. 76/PA  del 12/05/2017 SERVIZIO REFEZIONE SCOLASTICA SCUOLA PRIMARIA MESE DI APRILE 2017;17-07-2017;1930;0;148;1;Spese correnti;3;Acquisto di beni e servizi;1;Acquisto di beni;2;Altri beni di consumo;11;Generi alimentari;2017-07-17;
688;1;"303,72";"303,72";TESORERIA REGIONE LOMBARDIA; ;PAGAMENTO CANONE DEMANIALE PER L'USO DELLE AREE DEL DEMANIO IDRICO - CODICE CONCESSIONE : BG-02416;17-07-2017;214;0;241;1;Spese correnti;3;Acquisto di beni e servizi;1;Acquisto di beni;2;Altri beni di consumo;1;"Carta, cancelleria e stampati";2017-07-17;
715;1;"202,03";"202,03";QCOM INTERACTIVE SOLUTION;Z8D1D42A4E;ACCONTO Fatt.n. 000979/PA  del 31/05/2017;24-07-2017;214;0;86;1;Spese correnti;3;Acquisto di beni e servizi;1;Acquisto di beni;2;Altri beni di consumo;1;"Carta, cancelleria e stampati";2017-07-24;
716;1;"44,45";"44,45";QCOM INTERACTIVE SOLUTION;Z8D1D42A4E;SALDO Fatt.n. 000979/PA  del 31/05/2017;24-07-2017;214;0;86;1;Spese correnti;3;Acquisto di beni e servizi;1;Acquisto di beni;2;Altri beni di consumo;1;"Carta, cancelleria e stampati";2017-07-24;
717;1;"167,41";"167,41";MULTIUTILITY S.P.A.;Z461DB31F0;ACCONTO Fatt.n. 41702261287  del 29/06/2017 energia elettrica periodo 01/05/2017 31/05/2017 conto contrattuale 40000852 COMUNE DI SOLTO COLLINA -;24-07-2017;214;0;117;1;Spese correnti;3;Acquisto di beni e servizi;1;Acquisto di beni;2;Altri beni di consumo;1;"Carta, cancelleria e stampati";2017-07-24;
718;1;"37,83";"37,83";MULTIUTILITY S.P.A.;Z461DB31F0;SALDO Fatt.n. 41702261287  del 29/06/2017 energia elettrica periodo 01/05/2017 31/05/2017 conto contrattuale 40000852 COMUNE DI SOLTO COLLINA -;24-07-2017;214;0;117;1;Spese correnti;3;Acquisto di beni e servizi;1;Acquisto di beni;2;Altri beni di consumo;1;"Carta, cancelleria e stampati";2017-07-24;
719;1;"3.738,62";"3.738,62";MULTIUTILITY S.P.A.;ZE21DB32CE;ACCONTO Fatt.n. 41702261288  del 29/06/2017 energia elettrica periodo 01/05/2017 31/05/2017 conto contrattuale 40000853 COMUNE DI SOLTO COLLINA -;24-07-2017;4785;0;116;1;Spese correnti;3;Acquisto di beni e servizi;2;Acquisto di servizi;5;Utenze e canoni;4;Energia elettrica;2017-07-24;
720;1;"822,28";"822,28";MULTIUTILITY S.P.A.;ZE21DB32CE;SALDO Fatt.n. 41702261288  del 29/06/2017 energia elettrica periodo 01/05/2017 31/05/2017 conto contrattuale 40000853 COMUNE DI SOLTO COLLINA -;24-07-2017;4785;0;116;1;Spese correnti;3;Acquisto di beni e servizi;2;Acquisto di servizi;5;Utenze e canoni;4;Energia elettrica;2017-07-24;
725;1;"2.977,23";"2.977,23";IMPRESA PASINELLI  S.R.L.;Z9F1C4F2DA;ACCONTO Fatt.n. 15/E/2017  del 19/07/2017 SERVIZIO DI SGOMBERO NEVE DALLE STRADE COMUNALI STAGIONE INVERNALE 2016/2017.;26-07-2017;4770;0;390;1;Spese correnti;3;Acquisto di beni e servizi;2;Acquisto di servizi;9;Manutenzione ordinaria e riparazioni;1;"Manutenzione ordinaria e riparazioni di mezzi di trasporto ad uso civile, di sicurezza e ordine pubblico";2017-07-26;
726;1;"7.532,85";"7.532,85";IMPRESA PASINELLI  S.R.L.;Z9F1C4F2DA;SALDO Fatt.n. 15/E/2017  del 19/07/2017 SERVIZIO DI SGOMBERO NEVE DALLE STRADE COMUNALI STAGIONE INVERNALE 2016/2017.;26-07-2017;4770;0;245;1;Spese correnti;3;Acquisto di beni e servizi;2;Acquisto di servizi;9;Manutenzione ordinaria e riparazioni;1;"Manutenzione ordinaria e riparazioni di mezzi di trasporto ad uso civile, di sicurezza e ordine pubblico";2017-07-26;
727;1;"500,00";"500,00";DITTA ECOITALIA EVOLUTION S.R.L.;ZE61C75FFF;ACCONTO Fatt.n. 133  del 30/06/2017;26-07-2017;214;0;96;1;Spese correnti;3;Acquisto di beni e servizi;1;Acquisto di beni;2;Altri beni di consumo;1;"Carta, cancelleria e stampati";2017-07-26;
728;1;"396,87";"396,87";DENTELLA SRL ASCENSORI;Z5F1CD0228;SALDO Fatt.n. 000018/2017/PA  del 11/07/2017 mMANUTENZIONE ASCENSORI SECONDO SEMESTRE 2017;26-07-2017;2500;0;59;1;Spese correnti;3;Acquisto di beni e servizi;1;Acquisto di beni;2;Altri beni di consumo;999;Altri beni e materiali di consumo n.a.c.;2017-07-26;
729;1;"3.553,64";"3.553,64";CANTAMESSE LEONE;Z191E3EFFC;"SALDO Fatt.n. 29  del 18/07/2017 PROGETTAZIONE, DIREZIONE E CONTABILITA' LAVORI ASFALTATURE STRADE COMUNALI 2017";26-07-2017;6343;0;158;2;Spese in conto capitale;2;Investimenti fissi lordi e acquisto di terreni;1;Beni materiali;9;Beni immobili;12;Infrastrutture stradali;2017-07-26;
730;1;"153,40";"153,40";DITTA ECOITALIA EVOLUTION S.R.L.;ZE61C75FFF;SALDO Fatt.n. 133  del 30/06/2017;26-07-2017;1725;0;97;1;Spese correnti;3;Acquisto di beni e servizi;2;Acquisto di servizi;99;Altri servizi;999;Altri servizi diversi n.a.c.;2017-07-26;
735;1;"3.800,99";"3.800,99";NORD BROKER S.R.L.;Z6B1F6E9C2;COPERTURA ASSICURATIVA DELLA RESPONSABILITA' CIVILE PATRIMONIALE PER DANNI CAUSATI ALL'ENTE CON COLPA LIEVE DI AMMINISTRATORI/RESPONSABILI;01-08-2017;220;0;247;1;Spese correnti;10;Altre spese correnti;4;Premi di assicurazione;99;Altri premi di assicurazione n.a.c.;999;Altri premi di assicurazione n.a.c.;2017-08-01;
750;1;"9,73";"9,73";INTESA SANPAOLO; ;ACCONTO Fatt.n. V6000301  del 14/07/2017;22-08-2017;214;0;81;1;Spese correnti;3;Acquisto di beni e servizi;1;Acquisto di beni;2;Altri beni di consumo;1;"Carta, cancelleria e stampati";2017-08-22;
751;1;"2,92";"2,92";INTESA SANPAOLO; ;SALDO Fatt.n. V6000301  del 14/07/2017;22-08-2017;214;0;81;1;Spese correnti;3;Acquisto di beni e servizi;1;Acquisto di beni;2;Altri beni di consumo;1;"Carta, cancelleria e stampati";2017-08-22;
752;1;"183,59";"183,59";QCOM INTERACTIVE SOLUTION;Z8D1D42A4E;ACCONTO Fatt.n. 001207/PA  del 30/06/2017;22-08-2017;214;0;86;1;Spese correnti;3;Acquisto di beni e servizi;1;Acquisto di beni;2;Altri beni di consumo;1;"Carta, cancelleria e stampati";2017-08-22;
753;1;"40,17";"40,17";QCOM INTERACTIVE SOLUTION;Z8D1D42A4E;SALDO Fatt.n. 001207/PA  del 30/06/2017;22-08-2017;214;0;86;1;Spese correnti;3;Acquisto di beni e servizi;1;Acquisto di beni;2;Altri beni di consumo;1;"Carta, cancelleria e stampati";2017-08-22;
754;1;"159,87";"159,87";MULTIUTILITY S.P.A.;Z461DB31F0;ACCONTO Fatt.n. 41702639924  del 27/07/2017 energia elettrica periodo 01/06/2017 30/06/2017 conto contrattuale 40000852 COMUNE DI SOLTO COLLINA -;22-08-2017;214;0;117;1;Spese correnti;3;Acquisto di beni e servizi;1;Acquisto di beni;2;Altri beni di consumo;1;"Carta, cancelleria e stampati";2017-08-22;
755;1;"35,95";"35,95";MULTIUTILITY S.P.A.;Z461DB31F0;SALDO Fatt.n. 41702639924  del 27/07/2017 energia elettrica periodo 01/06/2017 30/06/2017 conto contrattuale 40000852 COMUNE DI SOLTO COLLINA -;22-08-2017;214;0;117;1;Spese correnti;3;Acquisto di beni e servizi;1;Acquisto di beni;2;Altri beni di consumo;1;"Carta, cancelleria e stampati";2017-08-22;
756;1;"3.558,41";"3.558,41";MULTIUTILITY S.P.A.;ZE21DB32CE;ACCONTO Fatt.n. 41702639925  del 27/07/2017 energia elettrica periodo 01/06/2017 30/06/2017 conto contrattuale 40000853 COMUNE DI SOLTO COLLINA -;22-08-2017;4785;0;116;1;Spese correnti;3;Acquisto di beni e servizi;2;Acquisto di servizi;5;Utenze e canoni;4;Energia elettrica;2017-08-22;
757;1;"783,85";"783,85";MULTIUTILITY S.P.A.;ZE21DB32CE;SALDO Fatt.n. 41702639925  del 27/07/2017 energia elettrica periodo 01/06/2017 30/06/2017 conto contrattuale 40000853 COMUNE DI SOLTO COLLINA -;22-08-2017;4785;0;116;1;Spese correnti;3;Acquisto di beni e servizi;2;Acquisto di servizi;5;Utenze e canoni;4;Energia elettrica;2017-08-22;
762;1;"1.960,00";"1.960,00";ISTITUTO COMPRENSIVO DI SOVERE; ;PIANO DIRITTO ALLO STUDIO 2017;23-08-2017;1831;0;270;1;Spese correnti;4;Trasferimenti correnti;1;Trasferimenti correnti a Amministrazioni Pubbliche;2;Trasferimenti correnti a Amministrazioni Locali;999;Trasferimenti correnti a altre Amministrazioni Locali n.a.c.;2017-08-23;
763;1;"1.960,00";"1.960,00";ISTITUTO COMPRENSIVO DI SOVERE; ;PIANO DIRITTO ALLO STUDIO 2016/17 ACCONTO FONDO 2016;23-08-2017;1831;0;394;1;Spese correnti;4;Trasferimenti correnti;1;Trasferimenti correnti a Amministrazioni Pubbliche;2;Trasferimenti correnti a Amministrazioni Locali;999;Trasferimenti correnti a altre Amministrazioni Locali n.a.c.;2017-08-23;
764;1;"646,57";"646,57";COMUNE DI PIANICO; ;CONTRIBUTO MANUTENZIONE E PULIZIA GRIGLIE RETE FOGNARIA COLLETTORE CONSORTILE - PIANICO ANNO 2017;23-08-2017;3244;0;271;1;Spese correnti;4;Trasferimenti correnti;1;Trasferimenti correnti a Amministrazioni Pubbliche;2;Trasferimenti correnti a Amministrazioni Locali;3;Trasferimenti correnti a Comuni;2017-08-23;
765;1;"234,24";"234,24";ATHENA S.R.L. ARREDO URBANO;Z1C1F50C8C;SALDO Fatt.n. 36 PA  del 31/07/2017 FT VENDITA SACCHETTI DEIEZIONE CANINA;23-08-2017;214;0;235;1;Spese correnti;3;Acquisto di beni e servizi;1;Acquisto di beni;2;Altri beni di consumo;1;"Carta, cancelleria e stampati";2017-08-23;
766;1;"78,00";"78,00";E.ON Energia S.p.A.;Z1F1EE2A79;SALDO Fatt.n. 40007311  del 01/08/2017 Le inviamo la bolletta relativa ai consumi del periodo dal 01/06/2017 al 30/06/2017 fornitura di gas PDR 01550000365820;23-08-2017;1620;0;211;1;Spese correnti;3;Acquisto di beni e servizi;1;Acquisto di beni;2;Altri beni di consumo;1;"Carta, cancelleria e stampati";2017-08-23;
767;1;"163,36";"163,36";E.ON Energia S.p.A.;Z1F1EE2A79;SALDO Fatt.n. 40007310  del 01/08/2017 Le inviamo la bolletta relativa ai consumi del periodo dal 01/06/2017 al 30/06/2017 fornitura di gas PDR 01550000365420 SCUOLA PRIMARIA;23-08-2017;1720;0;210;1;Spese correnti;3;Acquisto di beni e servizi;1;Acquisto di beni;2;Altri beni di consumo;999;Altri beni e materiali di consumo n.a.c.;2017-08-23;
768;1;"9.150,00";"9.150,00";FRATERNITA' SISTEMI IMPRESA SOCIALE;ZF11D3CF9A;SALDO Fatt.n. 3/1129  del 11/07/2017 PREST.SERVIZI SPORTELLO IMU ANNO 2017;23-08-2017;276;0;256;1;Spese correnti;3;Acquisto di beni e servizi;2;Acquisto di servizi;3;Aggi di riscossione;999;Altri aggi di riscossione n.a.c.;2017-08-23;
769;1;"224,74";"224,74";STAZIONE SERVIZIO IP di Gualeni S.;ZF31CCE374;SALDO Fatt.n. 0000026/EL  del 31/07/2017 FORNITURA CARBURANTE MESE DI LUGLIO 2017;23-08-2017;1250;0;42;1;Spese correnti;3;Acquisto di beni e servizi;1;Acquisto di beni;2;Altri beni di consumo;2;"Carburanti, combustibili e lubrificanti";2017-08-23;
770;1;"512,40";"512,40";HALLEY INFORMATICA;ZC91EA8CA6;SALDO Fatt.n. 8379/8/10  del 18/07/2017 ADDESTRAMENTO RIFERIMENTO FOGLI INTERVENTO N.225221 DEL 26.06.17 N.225417 DEL 28.06.17 RIFERITI ALLO STATO CIVILE Determina n. 126   del 18/05/2017 Responsabile ordine dell'Ente ESTI MAURIZIO;23-08-2017;6344;0;191;2;Spese in conto capitale;2;Investimenti fissi lordi e acquisto di terreni;1;Beni materiali;7;Hardware;1;Server;2017-08-23;
771;1;"16,82";"16,82";LEGGERE S.R.L.;Z541ABE500;SALDO Fatt.n. 11707  del 31/07/2017 FORNITURA LIBRI PER BIBLIOTECA;23-08-2017;2230;0;233;1;Spese correnti;3;Acquisto di beni e servizi;1;Acquisto di beni;2;Altri beni di consumo;999;Altri beni e materiali di consumo n.a.c.;2017-08-23;
772;1;"73,20";"73,20";VAL CAVALLINA SERVIZI SRL;Z101F5EAD2;SALDO Fatt.n. 110/PE  del 31/07/2017 FATTURA IMMEDIATA (E) FORNITURA BIDONCINI PER UMIDO;23-08-2017;214;0;242;1;Spese correnti;3;Acquisto di beni e servizi;1;Acquisto di beni;2;Altri beni di consumo;1;"Carta, cancelleria e stampati";2017-08-23;
780;1;"19,60";"19,60";ARAN; ;CONTRIBUTI ARAN;26-08-2017;214;0;280;1;Spese correnti;3;Acquisto di beni e servizi;1;Acquisto di beni;2;Altri beni di consumo;1;"Carta, cancelleria e stampati";2017-08-26;
781;1;"93,81";"335,85";GAMMA DARFO s.r.l. (forniture per uffici);Z441CCFFC8;ACCONTO Fatt.n. 215/PA  del 27/07/2017 Fattura pubbliche amministrazioni FORNITURA CANCELLERIA PER UFFICI COMUNALI;26-08-2017;214;0;279;1;Spese correnti;3;Acquisto di beni e servizi;1;Acquisto di beni;2;Altri beni di consumo;1;"Carta, cancelleria e stampati";2017-08-26;
781;2;"242,04";"335,85";GAMMA DARFO s.r.l. (forniture per uffici);Z441CCFFC8;SALDO Fatt.n. 215/PA  del 27/07/2017 Fattura pubbliche amministrazioni FORNITURA CANCELLERIA PER UFFICI COMUNALI;26-08-2017;214;0;279;1;Spese correnti;3;Acquisto di beni e servizi;1;Acquisto di beni;2;Altri beni di consumo;1;"Carta, cancelleria e stampati";2017-08-26;
782;1;"104,70";"104,70";GAMMA DARFO s.r.l. (forniture per uffici);Z441CCFFC8;SALDO Fatt.n. 227/PA  del 31/07/2017 Fattura accompagantoria rip PA FORNITURA SWITCH PER UFFICI COMUNALI;26-08-2017;214;0;58;1;Spese correnti;3;Acquisto di beni e servizi;1;Acquisto di beni;2;Altri beni di consumo;1;"Carta, cancelleria e stampati";2017-08-26;
783;1;"2.318,00";"2.318,00";WAVETECH SRL;Z6B1E0D460;SALDO Fatt.n. 12  del 03/08/2017 CIG : Z6B1E0D460 CANONE ANNUO 2017 VIDEOSORVEGLIANZA;26-08-2017;6344;0;257;2;Spese in conto capitale;2;Investimenti fissi lordi e acquisto di terreni;1;Beni materiali;7;Hardware;1;Server;2017-08-26;
787;1;"3.500,00";"3.500,00";GRUPPO ALPINI COLLINA ALTO SEBINO; ;CONTRIBUTO ALPINI COLLINA ALTO SEBINO ANNO 2017;28-08-2017;3095;0;260;1;Spese correnti;4;Trasferimenti correnti;4;Trasferimenti correnti a Istituzioni Sociali Private;1;Trasferimenti correnti a Istituzioni Sociali Private;1;Trasferimenti correnti a Istituzioni Sociali Private;2017-08-28;
788;1;"2.000,00";"2.000,00";PRO LOCO LA COLLINA; ;CONTRIBUTO PRO LOCO LA COLOLLINA ANNO 2017;28-08-2017;5440;0;261;1;Spese correnti;4;Trasferimenti correnti;4;Trasferimenti correnti a Istituzioni Sociali Private;1;Trasferimenti correnti a Istituzioni Sociali Private;1;Trasferimenti correnti a Istituzioni Sociali Private;2017-08-28;
789;1;"1.500,00";"1.500,00";PRO LOCO LA COLLINA; ;CONTRIBUTO CPTC/BIBLIOTECA ANNO 2017;28-08-2017;2230;0;262;1;Spese correnti;3;Acquisto di beni e servizi;1;Acquisto di beni;2;Altri beni di consumo;999;Altri beni e materiali di consumo n.a.c.;2017-08-28;
790;1;"500,00";"500,00";PRO LOCO LA COLLINA; ;CONTRIBUTO CPTC/BIBLIOTECA ANNO 2017;28-08-2017;5440;0;264;1;Spese correnti;4;Trasferimenti correnti;4;Trasferimenti correnti a Istituzioni Sociali Private;1;Trasferimenti correnti a Istituzioni Sociali Private;1;Trasferimenti correnti a Istituzioni Sociali Private;2017-08-28;
791;1;"1.000,00";"1.000,00";PRO LOCO LA COLLINA; ;CONTRIBUTO CPTC/BIBLIOTECA ANNO 2017;28-08-2017;4250;0;263;1;Spese correnti;4;Trasferimenti correnti;4;Trasferimenti correnti a Istituzioni Sociali Private;1;Trasferimenti correnti a Istituzioni Sociali Private;1;Trasferimenti correnti a Istituzioni Sociali Private;2017-08-28;
792;1;"2.000,00";"2.000,00";U.S. SOLTO COLLINA -; ;CONTRIBUTO UNIONE SPORTIVA ANNO 2017;28-08-2017;4250;0;265;1;Spese correnti;4;Trasferimenti correnti;4;Trasferimenti correnti a Istituzioni Sociali Private;1;Trasferimenti correnti a Istituzioni Sociali Private;1;Trasferimenti correnti a Istituzioni Sociali Private;2017-08-28;
793;1;"1.000,00";"1.000,00";ASSOCIAZIONE MUSICALE BANDA DELLA COLLINA; ;CONTRIBUTO ALLA BANDA MUSICALE ANNO 2017;28-08-2017;4448;0;266;1;Spese correnti;4;Trasferimenti correnti;4;Trasferimenti correnti a Istituzioni Sociali Private;1;Trasferimenti correnti a Istituzioni Sociali Private;1;Trasferimenti correnti a Istituzioni Sociali Private;2017-08-28;
794;1;"500,00";"500,00";COMUNE DI LOVERE; ;SPESA QUOTA ASSOCIATIVA "G16" ANNO 2017;28-08-2017;5440;0;268;1;Spese correnti;4;Trasferimenti correnti;4;Trasferimenti correnti a Istituzioni Sociali Private;1;Trasferimenti correnti a Istituzioni Sociali Private;1;Trasferimenti correnti a Istituzioni Sociali Private;2017-08-28;
795;1;"500,00";"500,00";AGENZIA TERRITORIALE PER IL TURISMO LAGO D'ISEO - FRANC; ;QUOTA ASSOCIATIVA ANNO 2017;28-08-2017;5440;0;267;1;Spese correnti;4;Trasferimenti correnti;4;Trasferimenti correnti a Istituzioni Sociali Private;1;Trasferimenti correnti a Istituzioni Sociali Private;1;Trasferimenti correnti a Istituzioni Sociali Private;2017-08-28;
796;1;"3.000,00";"3.000,00";ACCADEMIA TADINI; ;REALIZZAZIONE MANIFESTAZIONE "ONDE MUSICALI SUL LAGO D'ISEO";28-08-2017;5440;0;239;1;Spese correnti;4;Trasferimenti correnti;4;Trasferimenti correnti a Istituzioni Sociali Private;1;Trasferimenti correnti a Istituzioni Sociali Private;1;Trasferimenti correnti a Istituzioni Sociali Private;2017-08-28;
797;1;"32.710,31";"32.710,31";IMPRESA LEGRENZI SRL;ZB81E74A97;SALDO Fatt.n. E37  del 13/07/2017 LAVORI DI ASFALTATURE STRADE COMUNALI ANNO 2017 E REALIZZAZIONE PARCHEGGIO CIMITERO ESMATE IN COMUNE DI SOLTO COLLINA.;31-08-2017;6343;0;186;2;Spese in conto capitale;2;Investimenti fissi lordi e acquisto di terreni;1;Beni materiali;9;Beni immobili;12;Infrastrutture stradali;2017-08-31;
798;1;"1.903,20";"1.903,20";CANTAMESSE LEONE;ZF41F1CB85;SALDO Fatt.n. 34  del 16/08/2017 INCARICO SUPPORTO RESP. UFFICIO TECNICO SECONDO SEMESTRE 2017 LUGLIO;31-08-2017;272;0;236;1;Spese correnti;3;Acquisto di beni e servizi;2;Acquisto di servizi;10;Consulenze;1;"Incarichi libero professionali di studi, ricerca e consulenza";2017-08-31;
802;1;"126,89";"126,89";E.ON Energia S.p.A.;Z1F1EE2A79;SALDO Fatt.n. 40008127  del 01/09/2017 Le inviamo la bolletta relativa ai consumi del periodo dal 01/07/2017 al 31/07/2017 fornitura di gas PDR 01550000365420;08-09-2017;1720;0;210;1;Spese correnti;3;Acquisto di beni e servizi;1;Acquisto di beni;2;Altri beni di consumo;999;Altri beni e materiali di consumo n.a.c.;2017-09-08;
803;1;"44,92";"44,92";E.ON Energia S.p.A.;Z1F1EE2A79;SALDO Fatt.n. 40008128  del 01/09/2017 Le inviamo la bolletta relativa ai consumi del periodo dal 01/07/2017 al 31/07/2017 fornitura di gas PDR 01550000365820;08-09-2017;1620;0;211;1;Spese correnti;3;Acquisto di beni e servizi;1;Acquisto di beni;2;Altri beni di consumo;1;"Carta, cancelleria e stampati";2017-09-08;
804;1;"500,00";"500,00";DITTA ECOITALIA EVOLUTION S.R.L.;ZE61C75FFF;ACCONTO Fatt.n. 171  del 31/08/2017;08-09-2017;214;0;106;1;Spese correnti;3;Acquisto di beni e servizi;1;Acquisto di beni;2;Altri beni di consumo;1;"Carta, cancelleria e stampati";2017-09-08;
805;1;"153,40";"153,40";DITTA ECOITALIA EVOLUTION S.R.L.;ZE61C75FFF;SALDO Fatt.n. 171  del 31/08/2017;08-09-2017;1725;0;97;1;Spese correnti;3;Acquisto di beni e servizi;2;Acquisto di servizi;99;Altri servizi;999;Altri servizi diversi n.a.c.;2017-09-08;
806;1;"500,00";"500,00";DITTA ECOITALIA EVOLUTION S.R.L.;ZE61C75FFF;ACCONTO Fatt.n. 153  del 31/07/2017;08-09-2017;214;0;106;1;Spese correnti;3;Acquisto di beni e servizi;1;Acquisto di beni;2;Altri beni di consumo;1;"Carta, cancelleria e stampati";2017-09-08;
807;1;"154,40";"154,40";DITTA ECOITALIA EVOLUTION S.R.L.;ZE61C75FFF;SALDO Fatt.n. 153  del 31/07/2017;08-09-2017;1725;0;97;1;Spese correnti;3;Acquisto di beni e servizi;2;Acquisto di servizi;99;Altri servizi;999;Altri servizi diversi n.a.c.;2017-09-08;
808;1;"150,82";"150,82";FUEMA SRL;ZC11DCEEE3;ACCONTO Fatt.n. 21 / PA  del 01/09/2017 Fattura elettronica PA;08-09-2017;2230;0;131;1;Spese correnti;3;Acquisto di beni e servizi;1;Acquisto di beni;2;Altri beni di consumo;999;Altri beni e materiali di consumo n.a.c.;2017-09-08;
809;1;"157,76";"157,76";FUEMA SRL;ZC11DCEEE3;ACCONTO Fatt.n. 21 / PA  del 01/09/2017 Fattura elettronica PA;08-09-2017;1720;0;129;1;Spese correnti;3;Acquisto di beni e servizi;1;Acquisto di beni;2;Altri beni di consumo;999;Altri beni e materiali di consumo n.a.c.;2017-09-08;
810;1;"8,18";"8,18";FUEMA SRL;ZC11DCEEE3;SALDO Fatt.n. 21 / PA  del 01/09/2017 Fattura elettronica PA;08-09-2017;1620;0;130;1;Spese correnti;3;Acquisto di beni e servizi;1;Acquisto di beni;2;Altri beni di consumo;1;"Carta, cancelleria e stampati";2017-09-08;
811;1;"88,47";"88,47";FARMACIA POZZI DR. CORTESI CARLO;Z961FAD981;SALDO Fatt.n. 23 / PA  del 29/08/2017 FORNITURA MATERIALE FARMACEUTICO SCUOLA PRIMARIA;08-09-2017;1720;0;277;1;Spese correnti;3;Acquisto di beni e servizi;1;Acquisto di beni;2;Altri beni di consumo;999;Altri beni e materiali di consumo n.a.c.;2017-09-08;
812;1;"125,21";"125,21";FARMACIA POZZI DR. CORTESI CARLO;ZB01FAD9A6;SALDO Fatt.n. 22 / PA  del 29/08/2017 FORNITURA MATERIALE FARMACEUTICO PER SCUOLA DELL'INFANZIA;08-09-2017;1620;0;278;1;Spese correnti;3;Acquisto di beni e servizi;1;Acquisto di beni;2;Altri beni di consumo;1;"Carta, cancelleria e stampati";2017-09-08;
813;1;"268,40";"268,40";GHITTI GIUSEPPE S.N.C. DI CONTESSI G. & C;Z9B1F82995;SALDO Fatt.n. 90/PA  del 31/08/2017 FORNITURA E MESSA IN OPERA DI DUE CANESTRI PER CAMPETTO SPORTIVO SAN ROCCO;08-09-2017;3800;0;253;1;Spese correnti;3;Acquisto di beni e servizi;2;Acquisto di servizi;99;Altri servizi;999;Altri servizi diversi n.a.c.;2017-09-08;
814;1;"161,45";"161,45";IMPRESA LEGRENZI SRL;635495311E;SALDO Fatt.n. E54  del 04/09/2017 LAVORI DI REALIZZAZIONE MARCIAPIEDE PIU' SANTELLA LINGO LA S.P.77 PER FONTENO IN COMUNE DI SOLTO COLLINA.;08-09-2017;6343;0;252;2;Spese in conto capitale;2;Investimenti fissi lordi e acquisto di terreni;1;Beni materiali;9;Beni immobili;12;Infrastrutture stradali;2017-09-08;
816;1;"806,70";"806,70";MANELLA SILVANO;ZC51CD0137;ACCONTO Fatt.n. FE004A  del 04/09/2017;08-09-2017;4795;0;48;1;Spese correnti;3;Acquisto di beni e servizi;2;Acquisto di servizi;9;Manutenzione ordinaria e riparazioni;8;Manutenzione ordinaria e riparazioni di beni immobili;2017-09-08;
817;1;"500,00";"500,00";MANELLA SILVANO;ZC51CD0137;ACCONTO Fatt.n. FE004A  del 04/09/2017;08-09-2017;1720;0;51;1;Spese correnti;3;Acquisto di beni e servizi;1;Acquisto di beni;2;Altri beni di consumo;999;Altri beni e materiali di consumo n.a.c.;2017-09-08;
818;1;"500,00";"500,00";MANELLA SILVANO;ZC51CD0137;ACCONTO Fatt.n. FE004A  del 04/09/2017;08-09-2017;1620;0;52;1;Spese correnti;3;Acquisto di beni e servizi;1;Acquisto di beni;2;Altri beni di consumo;1;"Carta, cancelleria e stampati";2017-09-08;
819;1;"1.398,02";"1.398,02";MANELLA SILVANO;ZC51CD0137;SALDO Fatt.n. FE004A  del 04/09/2017;08-09-2017;2500;0;50;1;Spese correnti;3;Acquisto di beni e servizi;1;Acquisto di beni;2;Altri beni di consumo;999;Altri beni e materiali di consumo n.a.c.;2017-09-08;
831;1;"92,50";"92,50";GAMMA DARFO s.r.l. (forniture per uffici);Z3F1FB1274;SALDO Fatt.n. 231/PA  del 30/08/2017 Fattura accompagantoria rip PA INTERVENTO TECNICO C/O IL COMUNE;12-09-2017;1620;0;286;1;Spese correnti;3;Acquisto di beni e servizi;1;Acquisto di beni;2;Altri beni di consumo;1;"Carta, cancelleria e stampati";2017-09-12;
832;1;"7.897,76";"7.897,76";BIROLINI GIUSEPPE TOMA;Z601FAFEEA;SALDO Fatt.n. 70/PA  del 06/09/2017 Nota Addebito PA FORNITURA CALORE STAGIONE 2016/17 - POSTE;12-09-2017;216;0;294;1;Spese correnti;3;Acquisto di beni e servizi;2;Acquisto di servizi;5;Utenze e canoni;6;Gas;2017-09-12;
833;1;"6.100,00";"6.100,00";BIROLINI GIUSEPPE TOMA;Z601FAFEEA;SALDO Fatt.n. 72/PA  del 06/09/2017 Nota Addebito PA FORNITURA CALORE STAGIONE 2016/17 - UFFICI COMUNALI;12-09-2017;216;0;294;1;Spese correnti;3;Acquisto di beni e servizi;2;Acquisto di servizi;5;Utenze e canoni;6;Gas;2017-09-12;
834;1;"4.171,24";"4.171,24";BIROLINI GIUSEPPE TOMA;Z601FAFEEA;SALDO Fatt.n. 75/PA  del 06/09/2017 Nota Addebito PA FORNITURA CALORE STAGIONE 2016/17 -  MANO AMICA E BANDA;12-09-2017;216;0;294;1;Spese correnti;3;Acquisto di beni e servizi;2;Acquisto di servizi;5;Utenze e canoni;6;Gas;2017-09-12;
835;1;"2.440,00";"2.440,00";BIROLINI GIUSEPPE TOMA;Z601FAFEEA;SALDO Fatt.n. 74/PA  del 06/09/2017 Nota Addebito PA FORNITURA CALORE STAGIONE 2016/17 SEDE SINDACATI;12-09-2017;216;0;294;1;Spese correnti;3;Acquisto di beni e servizi;2;Acquisto di servizi;5;Utenze e canoni;6;Gas;2017-09-12;
836;1;"732,00";"732,00";BIROLINI GIUSEPPE TOMA;Z601FAFEEA;SALDO Fatt.n. 73/PA  del 06/09/2017 Nota Addebito PA FORNITURA CALORE STAGIONE 2016/17SALA CONSIGLIO;12-09-2017;216;0;294;1;Spese correnti;3;Acquisto di beni e servizi;2;Acquisto di servizi;5;Utenze e canoni;6;Gas;2017-09-12;
837;1;"3.660,00";"3.660,00";BIROLINI GIUSEPPE TOMA;Z601FAFEEA;SALDO Fatt.n. 71/PA  del 06/09/2017 Nota Addebito PA FORNITURA CALORE STAGIONE 2016/17 - BIBLIOTECA;12-09-2017;216;0;294;1;Spese correnti;3;Acquisto di beni e servizi;2;Acquisto di servizi;5;Utenze e canoni;6;Gas;2017-09-12;
845;1;"575,00";"575,00";NORD BROKER S.R.L.;Z5B1FDBD8B;POLIZZA RESPONSABILITA' CIVILE REALE MUTUA N. 2173016 GRUPPO PROTEZIONE CIVILE - INFORTUNI/MALATTIA REALE MUTUA N. 2438045 ANNO 2017;13-09-2017;220;0;301;1;Spese correnti;10;Altre spese correnti;4;Premi di assicurazione;99;Altri premi di assicurazione n.a.c.;999;Altri premi di assicurazione n.a.c.;2017-09-13;
846;1;"387,00";"387,00";STUDIO ASSOCIATO ZANNI E SPATTI;635495311E;SALDO Fatt.n. 43  del 14/09/2017 RECUPERO SPESE CATASTALI ANTICIPATE PER CESSIONE GRATUITA AREA AL COMUNE PER SANTELLA DENOMINATA CREST (INCARICO GRATUITO) COME DA DETERMINA DEL RESPONSABILE SERVIZIO TECNICO N. 142 IN DATA 27.09.2014;18-09-2017;6343;0;252;2;Spese in conto capitale;2;Investimenti fissi lordi e acquisto di terreni;1;Beni materiali;9;Beni immobili;12;Infrastrutture stradali;2017-09-18;
847;1;"3.203,50";"3.203,50";STUDIO ASSOCIATO ZANNI E SPATTI;ZB01E10E31;SALDO Fatt.n. 42  del 14/09/2017 COMPETENZE PROFESSIONALI PER REALIZZAZIONE NUOVA AIUOLA SPARTITRAFFICO INCROCIO SU S.P. 77 COME DA DETERMINA DEL RESPONSABILE SERVIZIO TECNICO M. 84 IN DATA 31.03.2017;18-09-2017;6343;0;149;2;Spese in conto capitale;2;Investimenti fissi lordi e acquisto di terreni;1;Beni materiali;9;Beni immobili;12;Infrastrutture stradali;2017-09-18;
848;1;"160,72";"160,72";POSTE ITALIANE S.P.A. BRESCIA C.M.P. Gestione Anticipi;ZD91D5C8F0;SALDO Fatt.n. 8717257002  del 08/09/2017 Fattura Elettronica relativa all'Identificativo Rendiconto 2091784540 SPESE POSTALI GIUGNO 2017;18-09-2017;214;0;99;1;Spese correnti;3;Acquisto di beni e servizi;1;Acquisto di beni;2;Altri beni di consumo;1;"Carta, cancelleria e stampati";2017-09-18;
849;1;"345,29";"345,29";POSTE ITALIANE S.P.A. BRESCIA C.M.P. Gestione Anticipi;ZD91D5C8F0;SALDO Fatt.n. 8717259423  del 08/09/2017 Fattura Elettronica relativa all'Identificativo Rendiconto 2092731560 SPESE POSTALI APRILE 2017;18-09-2017;214;0;99;1;Spese correnti;3;Acquisto di beni e servizi;1;Acquisto di beni;2;Altri beni di consumo;1;"Carta, cancelleria e stampati";2017-09-18;
850;1;"260,01";"260,01";POSTE ITALIANE S.P.A. BRESCIA C.M.P. Gestione Anticipi;ZD91D5C8F0;SALDO Fatt.n. 8717258546  del 08/09/2017 Fattura Elettronica relativa all'Identificativo Rendiconto 2092309439 SPESE POSTALI - MAGGIO 2017;18-09-2017;214;0;99;1;Spese correnti;3;Acquisto di beni e servizi;1;Acquisto di beni;2;Altri beni di consumo;1;"Carta, cancelleria e stampati";2017-09-18;
851;1;"119,62";"119,62";POSTE ITALIANE S.P.A. BRESCIA C.M.P. Gestione Anticipi;ZD91D5C8F0;SALDO Fatt.n. 8717260576  del 08/09/2017 Fattura Elettronica relativa all'Identificativo Rendiconto 2093254230 SPESE POSTALI - MARZO 2017;18-09-2017;214;0;99;1;Spese correnti;3;Acquisto di beni e servizi;1;Acquisto di beni;2;Altri beni di consumo;1;"Carta, cancelleria e stampati";2017-09-18;
852;1;"475,61";"475,61";STAZIONE SERVIZIO IP di Gualeni S.;ZF31CCE374;SALDO Fatt.n. 0000029/EL  del 31/08/2017 FORNITURA CARBURANTE MESE DI AGOSTO 2017;18-09-2017;4735;0;43;1;Spese correnti;3;Acquisto di beni e servizi;1;Acquisto di beni;2;Altri beni di consumo;2;"Carburanti, combustibili e lubrificanti";2017-09-18;
853;1;"122,00";"122,00";GRAFICHE GASPARI S.R.L.;Z6D1CCFF11;SALDO Fatt.n. 11324  del 31/08/2017 FORNITURA RACCOGLITORE AD ANELLI PER UFF. STATO CIVILE;18-09-2017;214;0;68;1;Spese correnti;3;Acquisto di beni e servizi;1;Acquisto di beni;2;Altri beni di consumo;1;"Carta, cancelleria e stampati";2017-09-18;
854;1;"93,52";"93,52";GRAFICHE GASPARI S.R.L.;Z6D1CCFF11;SALDO Fatt.n. 11278  del 31/08/2017 FORNITURA CUSTODIE PER CARTE ID. - CARTELLINO C.I. - CONTRASSEGNI INVALIDI;18-09-2017;214;0;68;1;Spese correnti;3;Acquisto di beni e servizi;1;Acquisto di beni;2;Altri beni di consumo;1;"Carta, cancelleria e stampati";2017-09-18;
855;1;"543,49";"543,49";FRATERNITA' SISTEMI IMPRESA SOCIALE;ZF11D3CF9A;SALDO Fatt.n. 3/1407  del 08/09/2017 PREST.SERVIZI IMU VIOLAZIONE;18-09-2017;276;0;84;1;Spese correnti;3;Acquisto di beni e servizi;2;Acquisto di servizi;3;Aggi di riscossione;999;Altri aggi di riscossione n.a.c.;2017-09-18;
856;1;"1.903,20";"1.903,20";CANTAMESSE LEONE;ZF41F1CB85;SALDO Fatt.n. 35  del 11/09/2017 INCARICO DI SUPPORTO AL RESPONSABILE SERVIZIO TECNICO SECONDO SEMESTRE 2017 ACCONTO N. 2 - AGOSTO;18-09-2017;272;0;236;1;Spese correnti;3;Acquisto di beni e servizi;2;Acquisto di servizi;10;Consulenze;1;"Incarichi libero professionali di studi, ricerca e consulenza";2017-09-18;
874;1;"150,00";"150,00";CALDARA MATTEO; ;RIMBORSO IMPOSTE COMUNALI NON DOVUTE;20-09-2017;5835;0;310;1;Spese correnti;10;Altre spese correnti;99;Altre spese correnti n.a.c.;99;Altre spese correnti n.a.c.;999;Altre spese correnti n.a.c.;2017-09-20;
875;1;"6.958,29";"6.958,29";PROVINCIA DI BERGAMO; ;RIVERSAMENTO T.E.F.A. ANNO 2016 RELATIVO AGLI INCASSI TARI 2016;23-09-2017;3735;0;142;1;Spese correnti;4;Trasferimenti correnti;1;Trasferimenti correnti a Amministrazioni Pubbliche;2;Trasferimenti correnti a Amministrazioni Locali;6;Trasferimenti correnti a Comunit� Montane;2017-09-23;
876;1;"1.133,31";"1.133,31";PROVINCIA DI BERGAMO; ;RIVERSAMENTO T.E.F.A. ANNO 2016 RELATIVO AGLI INCASSI TARI 2016;23-09-2017;3735;0;234;1;Spese correnti;4;Trasferimenti correnti;1;Trasferimenti correnti a Amministrazioni Pubbliche;2;Trasferimenti correnti a Amministrazioni Locali;6;Trasferimenti correnti a Comunit� Montane;2017-09-23;
877;1;"168,63";"168,63";MULTIUTILITY S.P.A.;Z461DB31F0;ACCONTO Fatt.n. 41703123850  del 29/08/2017 energia elettrica periodo 01/07/2017 31/07/2017 conto contrattuale 40000852 COMUNE DI SOLTO COLLINA -;25-09-2017;214;0;117;1;Spese correnti;3;Acquisto di beni e servizi;1;Acquisto di beni;2;Altri beni di consumo;1;"Carta, cancelleria e stampati";2017-09-25;
878;1;"37,88";"37,88";MULTIUTILITY S.P.A.;Z461DB31F0;SALDO Fatt.n. 41703123850  del 29/08/2017 energia elettrica periodo 01/07/2017 31/07/2017 conto contrattuale 40000852 COMUNE DI SOLTO COLLINA -;25-09-2017;214;0;117;1;Spese correnti;3;Acquisto di beni e servizi;1;Acquisto di beni;2;Altri beni di consumo;1;"Carta, cancelleria e stampati";2017-09-25;
879;1;"3.489,72";"3.489,72";MULTIUTILITY S.P.A.;ZE21DB32CE;ACCONTO Fatt.n. 41703123851  del 29/08/2017 energia elettrica periodo 01/07/2017 31/07/2017 conto contrattuale 40000853 COMUNE DI SOLTO COLLINA -;25-09-2017;4785;0;116;1;Spese correnti;3;Acquisto di beni e servizi;2;Acquisto di servizi;5;Utenze e canoni;4;Energia elettrica;2017-09-25;
880;1;"768,52";"768,52";MULTIUTILITY S.P.A.;ZE21DB32CE;SALDO Fatt.n. 41703123851  del 29/08/2017 energia elettrica periodo 01/07/2017 31/07/2017 conto contrattuale 40000853 COMUNE DI SOLTO COLLINA -;25-09-2017;4785;0;116;1;Spese correnti;3;Acquisto di beni e servizi;2;Acquisto di servizi;5;Utenze e canoni;4;Energia elettrica;2017-09-25;
883;1;"669,32";"669,32";COMUNITA MONTANA DEI LAGHI BERGAMASCHI; ;GESTIONE ASSOCIATO SPORTELLO UNICO PER LE ATTIVITA' PRODUTTIVE SUAP;26-09-2017;670;0;127;1;Spese correnti;10;Altre spese correnti;99;Altre spese correnti n.a.c.;99;Altre spese correnti n.a.c.;999;Altre spese correnti n.a.c.;2017-09-26;
884;1;"4.500,00";"4.500,00";COMUNITA MONTANA DEI LAGHI BERGAMASCHI; ;IMPEGNO DI SPESA PER QUOTA PARTE A CARICO DEL COMUNE DI SOLTO COLLINA DELLE OPERE DI MANUTENZIONE ORDINARIA "SENTIERO NATURA DEL SEBINO" ANNO 2016;26-09-2017;2645;0;266;1;Spese correnti;4;Trasferimenti correnti;1;Trasferimenti correnti a Amministrazioni Pubbliche;2;Trasferimenti correnti a Amministrazioni Locali;6;Trasferimenti correnti a Comunit� Montane;2017-09-26;
889;1;"499,98";"499,98";ATHENA S.R.L. ARREDO URBANO;Z8F1DF472F;SALDO Fatt.n. 48PA  del 26/09/2017 FT VENDITA ARREDO URBANO - FORNITURA POSACENERI;05-10-2017;6343;0;141;2;Spese in conto capitale;2;Investimenti fissi lordi e acquisto di terreni;1;Beni materiali;9;Beni immobili;12;Infrastrutture stradali;2017-10-05;
890;1;"800,00";"800,00";AGRISERVICE di Carrara Aristide & C. s.n.c.;Z901F50D6B;SALDO Fatt.n. 1/PA  del 25/09/2017 FORNITURA DECESPUGLIATORE PER GRUPPO PROTEZIONE CIVILE;05-10-2017;6343;0;237;2;Spese in conto capitale;2;Investimenti fissi lordi e acquisto di terreni;1;Beni materiali;9;Beni immobili;12;Infrastrutture stradali;2017-10-05;
891;1;"121,00";"121,00";AUTONOLEGGIO VALCALEPIO DI CRISTINELLI TOMASINO & C. S.;ZE11FEFD04;SALDO Fatt.n. 69/2017  del 21/09/2017 SERVIZIO TRASPORTO ALUNNI MATERNA A CREDARO CASCINA PRATI DEL 21/09/2017 IVA DA VERSARE A CURA DEL CESSIONARIO O COMMITTENTE AI SENSI DELL'ART. 17TER DEL DPR 633/72 CONTO DEDICATO L. N. 136/2010;05-10-2017;1620;0;304;1;Spese correnti;3;Acquisto di beni e servizi;1;Acquisto di beni;2;Altri beni di consumo;1;"Carta, cancelleria e stampati";2017-10-05;
892;1;"10.959,37";"10.959,37";EDIL ZENTI d Zenti Giuseppe & C. s.n.c.;ZC71E8189C;SALDO Fatt.n. 1 PA  del 15/09/2017 Ft Split Payment ex art.17-ter DPR 633/72 LAVORI DI REALIZZAZIONE AIUOLA SPARTITRAFFICO;05-10-2017;6343;0;188;2;Spese in conto capitale;2;Investimenti fissi lordi e acquisto di terreni;1;Beni materiali;9;Beni immobili;12;Infrastrutture stradali;2017-10-05;
893;1;"56,43";"56,43";FARMACIA POZZI DR. CORTESI CARLO;Z001FB0F33;SALDO Fatt.n. 27 / PA  del 22/09/2017 FORNITURA PRODOTTI FARMACEUTICI PER UFFICI COMUNALI;05-10-2017;214;0;282;1;Spese correnti;3;Acquisto di beni e servizi;1;Acquisto di beni;2;Altri beni di consumo;1;"Carta, cancelleria e stampati";2017-10-05;
894;1;"777,09";"777,09";FARMEC S.A.S.;ZC41FAD928;SALDO Fatt.n. 000023/2017  del 21/09/2017 FORNITURA VETTOVAGLIE PER MENSA SCOLASTICA;05-10-2017;1930;0;274;1;Spese correnti;3;Acquisto di beni e servizi;1;Acquisto di beni;2;Altri beni di consumo;11;Generi alimentari;2017-10-05;
895;1;"275,00";"275,00";NAVIGAZIONE LAGO D'ISO S.R.L.;Z9A1FDA653;SALDO Fatt.n. 0000035/V3  del 28/09/2017 servizio svolto il 24/09/2017 (m/ve "Marone") NOLEGGIO NATANTE CON CONDUCENTE  - MANIF. SPECCHIATI NEL BLU;05-10-2017;5440;0;299;1;Spese correnti;4;Trasferimenti correnti;4;Trasferimenti correnti a Istituzioni Sociali Private;1;Trasferimenti correnti a Istituzioni Sociali Private;1;Trasferimenti correnti a Istituzioni Sociali Private;2017-10-05;
896;1;"1.059,75";"1.059,75";PANZERI GIOVANNI S.N.C.;Z7A1FB0FBA;SALDO Fatt.n. H00693  del 23/09/2017 DETERMINA 192 DEL  24-08-2017 FORNITURA PRODOTTI PER LA PULIZIA;05-10-2017;1720;0;283;1;Spese correnti;3;Acquisto di beni e servizi;1;Acquisto di beni;2;Altri beni di consumo;999;Altri beni e materiali di consumo n.a.c.;2017-10-05;
897;1;"801,95";"801,95";PANZERI GIOVANNI S.N.C.;Z551FB137B;SALDO Fatt.n. H00692  del 23/09/2017 DETERMINA 106 DEL  24-08-2017 FORNITURA PRODOTTI PER LA PULIZIA;05-10-2017;1620;0;287;1;Spese correnti;3;Acquisto di beni e servizi;1;Acquisto di beni;2;Altri beni di consumo;1;"Carta, cancelleria e stampati";2017-10-05;
898;1;"637,94";"637,94";PANZERI GIOVANNI S.N.C.;ZDE1FAD94D;SALDO Fatt.n. H00691  del 23/09/2017 DETERMINA 186 DEL 23.08.2017FORNITURA PRODOTTI PER LA PULIZIA;05-10-2017;1930;0;275;1;Spese correnti;3;Acquisto di beni e servizi;1;Acquisto di beni;2;Altri beni di consumo;11;Generi alimentari;2017-10-05;
899;1;"813,07";"813,07";P. A. CONSULTING; ;SALDO Fatt.n. 20/178  del 25/09/2017 GESTIONE PAGHE III TRIMESTRE 2017;05-10-2017;214;0;45;1;Spese correnti;3;Acquisto di beni e servizi;1;Acquisto di beni;2;Altri beni di consumo;1;"Carta, cancelleria e stampati";2017-10-05;
900;1;"35,49";"35,49";UNIACQUE SPA; ;SALDO Fatt.n. 201720006636  del 11/09/2017 FORNITURA ACQUA POTABILE;05-10-2017;932;0;111;1;Spese correnti;3;Acquisto di beni e servizi;2;Acquisto di servizi;5;Utenze e canoni;5;Acqua;2017-10-05;
901;1;"169,40";"169,40";UNIACQUE SPA; ;SALDO Fatt.n. 201720006637  del 11/09/2017 FORNITURA ACQUA POTABILE;05-10-2017;1720;0;112;1;Spese correnti;3;Acquisto di beni e servizi;1;Acquisto di beni;2;Altri beni di consumo;999;Altri beni e materiali di consumo n.a.c.;2017-10-05;
902;1;"23,14";"23,14";UNIACQUE SPA; ;SALDO Fatt.n. 201720006642  del 11/09/2017 FORNITURA ACQUA POTABILE;05-10-2017;932;0;111;1;Spese correnti;3;Acquisto di beni e servizi;2;Acquisto di servizi;5;Utenze e canoni;5;Acqua;2017-10-05;
903;1;"41,70";"41,70";UNIACQUE SPA; ;SALDO Fatt.n. 201720006639  del 11/09/2017 FORNITURA ACQUA POTABILE;05-10-2017;932;0;111;1;Spese correnti;3;Acquisto di beni e servizi;2;Acquisto di servizi;5;Utenze e canoni;5;Acqua;2017-10-05;
904;1;"27,36";"27,36";UNIACQUE SPA; ;SALDO Fatt.n. 201720006640  del 11/09/2017 FORNITURA ACQUA POTABILE;05-10-2017;932;0;111;1;Spese correnti;3;Acquisto di beni e servizi;2;Acquisto di servizi;5;Utenze e canoni;5;Acqua;2017-10-05;
905;1;"71,58";"71,58";UNIACQUE SPA; ;SALDO Fatt.n. 201720006641  del 11/09/2017 FORNITURA ACQUA POTABILE;05-10-2017;1720;0;112;1;Spese correnti;3;Acquisto di beni e servizi;1;Acquisto di beni;2;Altri beni di consumo;999;Altri beni e materiali di consumo n.a.c.;2017-10-05;
906;1;"41,70";"41,70";UNIACQUE SPA; ;SALDO Fatt.n. 201720006638  del 11/09/2017 FORNITURA ACQUA POTABILE;05-10-2017;932;0;111;1;Spese correnti;3;Acquisto di beni e servizi;2;Acquisto di servizi;5;Utenze e canoni;5;Acqua;2017-10-05;
907;1;"73,20";"73,20";VAL CAVALLINA SERVIZI SRL;Z101F5EAD2;SALDO Fatt.n. 128/PE  del 31/08/2017 FATTURA IMMEDIATA (E) FORNITURA CONTENITORI UMIDO;05-10-2017;214;0;242;1;Spese correnti;3;Acquisto di beni e servizi;1;Acquisto di beni;2;Altri beni di consumo;1;"Carta, cancelleria e stampati";2017-10-05;
927;1;"181,27";"181,27";QCOM INTERACTIVE SOLUTION;Z8D1D42A4E;ACCONTO Fatt.n. 001643/PA  del 31/08/2017 CANONE TELEFONICO MESE DI AGOSTO 2017;07-10-2017;214;0;86;1;Spese correnti;3;Acquisto di beni e servizi;1;Acquisto di beni;2;Altri beni di consumo;1;"Carta, cancelleria e stampati";2017-10-07;
928;1;"40,88";"40,88";QCOM INTERACTIVE SOLUTION;Z8D1D42A4E;SALDO Fatt.n. 001643/PA  del 31/08/2017 CANONE TELEFONICO MESE DI AGOSTO 2017;07-10-2017;214;0;86;1;Spese correnti;3;Acquisto di beni e servizi;1;Acquisto di beni;2;Altri beni di consumo;1;"Carta, cancelleria e stampati";2017-10-07;
929;1;"193,54";"193,54";QCOM INTERACTIVE SOLUTION;Z8D1D42A4E;ACCONTO Fatt.n. 001419/PA  del 31/07/2017 CANONE TELEFONICO MESE DI LUGLIO 2017;07-10-2017;214;0;86;1;Spese correnti;3;Acquisto di beni e servizi;1;Acquisto di beni;2;Altri beni di consumo;1;"Carta, cancelleria e stampati";2017-10-07;
930;1;"42,36";"42,36";QCOM INTERACTIVE SOLUTION;Z8D1D42A4E;SALDO Fatt.n. 001419/PA  del 31/07/2017 CANONE TELEFONICO MESE DI LUGLIO 2017;07-10-2017;214;0;86;1;Spese correnti;3;Acquisto di beni e servizi;1;Acquisto di beni;2;Altri beni di consumo;1;"Carta, cancelleria e stampati";2017-10-07;
933;1;"427,00";"427,00";APAVE ITALIA CPM S.R.L.;ZED1FAD96C;SALDO Fatt.n. P192  del 30/09/2017 SERVIZIO DI DISINFEZIONE EDIFICI SCOLASTICI E DERATTIZZAZIONE;18-10-2017;1720;0;276;1;Spese correnti;3;Acquisto di beni e servizi;1;Acquisto di beni;2;Altri beni di consumo;999;Altri beni e materiali di consumo n.a.c.;2017-10-18;
934;1;"3.068,90";"3.068,90";AUTONOLEGGIO VALCALEPIO DI CRISTINELLI TOMASINO & C. S.;ZE41F755DE;SALDO Fatt.n. 72/2017  del 30/09/2017 SERVIZIO TRASPORTO SCOLASTICO EFFETTUATO NEL MESE DI SETTEMBRE 2017 IVA DA VERSARE A CURA DEL CESSIONARIO O COMMITTENTE AI SENSI DELL'ART.17TER DEL DPR 633/1972 CONTO DEDICATO LEGGE N. 136/2010;18-10-2017;1941;0;273;1;Spese correnti;3;Acquisto di beni e servizi;2;Acquisto di servizi;99;Altri servizi;999;Altri servizi diversi n.a.c.;2017-10-18;
935;1;"820,68";"820,68";AERRE DI PASINELLI A. E CRETTI R SNC;Z781FB4DF0;SALDO Fatt.n. 7/PA  del 30/09/2017 CIG 78937879;18-10-2017;1930;0;309;1;Spese correnti;3;Acquisto di beni e servizi;1;Acquisto di beni;2;Altri beni di consumo;11;Generi alimentari;2017-10-18;
936;1;"1.903,20";"1.903,20";CANTAMESSE LEONE;ZF41F1CB85;SALDO Fatt.n. 37  del 02/10/2017 SUPPORTO AL RESPONSABILE UFFICIO TECNICO 3 ACCONTO (SETTEMBRE 2017);18-10-2017;272;0;236;1;Spese correnti;3;Acquisto di beni e servizi;2;Acquisto di servizi;10;Consulenze;1;"Incarichi libero professionali di studi, ricerca e consulenza";2017-10-18;
937;1;"1.269,80";"1.269,80";CANTAMESSE LEONE;Z541E3F324;SALDO Fatt.n. 38  del 02/10/2017 PROGETTAZIONE ESECUTIVA PAVIMENTAZIONE TRATTO STRADA S. DEFENDENTE;18-10-2017;6343;0;157;2;Spese in conto capitale;2;Investimenti fissi lordi e acquisto di terreni;1;Beni materiali;9;Beni immobili;12;Infrastrutture stradali;2017-10-18;
938;1;"2.664,48";"2.664,48";CANTAMESSE LEONE;ZE01E3F1A8;SALDO Fatt.n. 39  del 02/10/2017 PROGETTAZIONE DIREZIONE E CONTABILIZZAZIONE RIFACIMENTO SEGNALETICA ORIZZONTALE;18-10-2017;6343;0;156;2;Spese in conto capitale;2;Investimenti fissi lordi e acquisto di terreni;1;Beni materiali;9;Beni immobili;12;Infrastrutture stradali;2017-10-18;
939;1;"183,00";"183,00";ECOLOGIA SEBINA SRL;Z121FCEAAD;SALDO Fatt.n. 191 / PA  del 29/09/2017 FATTURA PA FORMAZIONE DIPENDENTI MENSA SCOLASTICA;18-10-2017;1930;0;296;1;Spese correnti;3;Acquisto di beni e servizi;1;Acquisto di beni;2;Altri beni di consumo;11;Generi alimentari;2017-10-18;
940;1;"500,00";"500,00";DITTA ECOITALIA EVOLUTION S.R.L.;ZE61C75FFF;ACCONTO Fatt.n. 189  del 30/09/2017;18-10-2017;214;0;96;1;Spese correnti;3;Acquisto di beni e servizi;1;Acquisto di beni;2;Altri beni di consumo;1;"Carta, cancelleria e stampati";2017-10-18;
941;1;"153,40";"153,40";DITTA ECOITALIA EVOLUTION S.R.L.;ZE61C75FFF;SALDO Fatt.n. 189  del 30/09/2017;18-10-2017;1725;0;97;1;Spese correnti;3;Acquisto di beni e servizi;2;Acquisto di servizi;99;Altri servizi;999;Altri servizi diversi n.a.c.;2017-10-18;
942;1;"42,55";"42,55";E.ON Energia S.p.A.;Z1F1EE2A79;SALDO Fatt.n. 40008922  del 02/10/2017 Le inviamo la bolletta relativa ai consumi del periodo dal 01/08/2017 al 31/08/2017 fornitura di gas PDR 01550000365820 SCUOLA ELEMENTARE;18-10-2017;1720;0;210;1;Spese correnti;3;Acquisto di beni e servizi;1;Acquisto di beni;2;Altri beni di consumo;999;Altri beni e materiali di consumo n.a.c.;2017-10-18;
943;1;"110,77";"110,77";E.ON Energia S.p.A.;Z1F1EE2A79;SALDO Fatt.n. 40008921  del 02/10/2017 Le inviamo la bolletta relativa ai consumi del periodo dal 01/08/2017 al 31/08/2017 fornitura di gas PDR 01550000365420 METANO SCUOLA MATERNA;18-10-2017;1620;0;211;1;Spese correnti;3;Acquisto di beni e servizi;1;Acquisto di beni;2;Altri beni di consumo;1;"Carta, cancelleria e stampati";2017-10-18;
944;1;"211,06";"211,06";FARMEC S.A.S.;ZEE200EDB2;SALDO Fatt.n. 000026/2017  del 04/10/2017 FORNITURA VETTOVAGLIE PER MENSA SCOLASTICA;18-10-2017;1930;0;321;1;Spese correnti;3;Acquisto di beni e servizi;1;Acquisto di beni;2;Altri beni di consumo;11;Generi alimentari;2017-10-18;
945;1;"620,95";"620,95";STAZIONE SERVIZIO IP di Gualeni S.;ZF31CCE374;SALDO Fatt.n. 0000030/EL  del 21/09/2017 RIPARAZIONE DOBLO';18-10-2017;4621;0;44;1;Spese correnti;3;Acquisto di beni e servizi;2;Acquisto di servizi;9;Manutenzione ordinaria e riparazioni;1;"Manutenzione ordinaria e riparazioni di mezzi di trasporto ad uso civile, di sicurezza e ordine pubblico";2017-10-18;
946;1;"420,88";"420,88";STAZIONE SERVIZIO IP di Gualeni S.;ZF31CCE374;SALDO Fatt.n. 0000032/EL  del 30/09/2017 FORNITURA CARBURANTE MESE DI SETTEMBRE 2017;18-10-2017;4735;0;43;1;Spese correnti;3;Acquisto di beni e servizi;1;Acquisto di beni;2;Altri beni di consumo;2;"Carburanti, combustibili e lubrificanti";2017-10-18;
947;1;"789,90";"789,90";PARIS LUCA - MACELLERIA -;Z6F1FB506A;SALDO Fatt.n. 16/PA  del 30/09/2017 SOLTO: DETERMINA N.207 DEL18/09/2017  CIG: Z6F1FB506A FORNITURA DERRATE ALIMENTARI MESE DI SETTEMBRE 2017;18-10-2017;1930;0;307;1;Spese correnti;3;Acquisto di beni e servizi;1;Acquisto di beni;2;Altri beni di consumo;11;Generi alimentari;2017-10-18;
948;1;"358,95";"358,95";SIGNORINI CLAUDIO;ZD21FB4FA5;SALDO Fatt.n. 13/1  del 30/09/2017 FATTURA N. 13/1 DEL 30.09.2017 FORNITURA DERRATE ALIMENTARI PER MENSA SCOLASTICA MESE DI SETTEMBRE 2017;18-10-2017;1930;0;308;1;Spese correnti;3;Acquisto di beni e servizi;1;Acquisto di beni;2;Altri beni di consumo;11;Generi alimentari;2017-10-18;
949;1;"832,00";"832,00";STUDIO LEGALE GIUDICI E BIGONI;ZF22032481;ACCONTO Fatt.n. 4/2017/EL  del 28/09/2017 Onorari per la pratica IMMOBILIARE SALA TAR --delibera n 69 del 17.11.11-    *36540*;18-10-2017;6343;0;330;2;Spese in conto capitale;2;Investimenti fissi lordi e acquisto di terreni;1;Beni materiali;9;Beni immobili;12;Infrastrutture stradali;2017-10-18;
950;1;"183,04";"183,04";STUDIO LEGALE GIUDICI E BIGONI;ZF22032481;SALDO Fatt.n. 4/2017/EL  del 28/09/2017 Onorari per la pratica IMMOBILIARE SALA TAR --delibera n 69 del 17.11.11-    *36540*;18-10-2017;6343;0;330;2;Spese in conto capitale;2;Investimenti fissi lordi e acquisto di terreni;1;Beni materiali;9;Beni immobili;12;Infrastrutture stradali;2017-10-18;
979;1;"3.865,38";"3.865,38";MULTIUTILITY S.P.A.;ZE21DB32CE;ACCONTO Fatt.n. 41703434150  del 27/09/2017 energia elettrica periodo 01/08/2017 31/08/2017 conto contrattuale 40000853 COMUNE DI SOLTO COLLINA -;21-10-2017;4785;0;116;1;Spese correnti;3;Acquisto di beni e servizi;2;Acquisto di servizi;5;Utenze e canoni;4;Energia elettrica;2017-10-21;
980;1;"850,38";"850,38";MULTIUTILITY S.P.A.;ZE21DB32CE;SALDO Fatt.n. 41703434150  del 27/09/2017 energia elettrica periodo 01/08/2017 31/08/2017 conto contrattuale 40000853 COMUNE DI SOLTO COLLINA -;21-10-2017;4785;0;116;1;Spese correnti;3;Acquisto di beni e servizi;2;Acquisto di servizi;5;Utenze e canoni;4;Energia elettrica;2017-10-21;
981;1;"184,49";"184,49";MULTIUTILITY S.P.A.;Z461DB31F0;ACCONTO Fatt.n. 41703434149  del 27/09/2017 energia elettrica periodo 01/08/2017 31/08/2017 conto contrattuale 40000852 COMUNE DI SOLTO COLLINA -;21-10-2017;214;0;117;1;Spese correnti;3;Acquisto di beni e servizi;1;Acquisto di beni;2;Altri beni di consumo;1;"Carta, cancelleria e stampati";2017-10-21;
982;1;"41,59";"41,59";MULTIUTILITY S.P.A.;Z461DB31F0;SALDO Fatt.n. 41703434149  del 27/09/2017 energia elettrica periodo 01/08/2017 31/08/2017 conto contrattuale 40000852 COMUNE DI SOLTO COLLINA -;21-10-2017;214;0;117;1;Spese correnti;3;Acquisto di beni e servizi;1;Acquisto di beni;2;Altri beni di consumo;1;"Carta, cancelleria e stampati";2017-10-21;
985;1;"748,10";"748,10";SE.P.A.M. S.N.C. DI MORETTI DOMENICO &C.; ;PAGAMENTO BOLLI AUTOMEZZI COMUNALI;24-10-2017;4621;0;343;1;Spese correnti;3;Acquisto di beni e servizi;2;Acquisto di servizi;9;Manutenzione ordinaria e riparazioni;1;"Manutenzione ordinaria e riparazioni di mezzi di trasporto ad uso civile, di sicurezza e ordine pubblico";2017-10-24;
996;1;"750,70";"750,70";COMUNE DI SERIATE; ;QUOTA COMPARTECIPAZIONE ALLE SPESE PER I SERVIZI CENTRALIZZATI - ADESIONE SISTEMA BIBLIOTECARIO ANNO 2017;24-10-2017;2230;0;91;1;Spese correnti;3;Acquisto di beni e servizi;1;Acquisto di beni;2;Altri beni di consumo;999;Altri beni e materiali di consumo n.a.c.;2017-10-24;
997;1;"457,90";"457,90";PROVINCIA DI BERGAMO - SERVIZIO CAVE; ;VERSAMENTO ALIQUOTA DEL 15% TRIBUTO ESCAVAZIONE ANNO 2016;24-10-2017;5835;0;344;1;Spese correnti;10;Altre spese correnti;99;Altre spese correnti n.a.c.;99;Altre spese correnti n.a.c.;999;Altre spese correnti n.a.c.;2017-10-24;
998;1;"1.936,87";"1.936,87";COMUNITA MONTANA DEI LAGHI BERGAMASCHI; ;GESTIONE ASSOCIATO SPORTELLO UNICO PER LE ATTIVITA' PRODUTTIVE SUAP;24-10-2017;670;0;127;1;Spese correnti;10;Altre spese correnti;99;Altre spese correnti n.a.c.;99;Altre spese correnti n.a.c.;999;Altre spese correnti n.a.c.;2017-10-24;
999;1;"996,57";"996,57";COMUNITA MONTANA DEI LAGHI BERGAMASCHI; ;COSTO ANNO 2017 - PROTEZIONE CIVILE;24-10-2017;3096;0;336;1;Spese correnti;4;Trasferimenti correnti;4;Trasferimenti correnti a Istituzioni Sociali Private;1;Trasferimenti correnti a Istituzioni Sociali Private;1;Trasferimenti correnti a Istituzioni Sociali Private;2017-10-24;
1000;1;"1.380,20";"1.380,20";COMUNITA MONTANA DEI LAGHI BERGAMASCHI; ;COSTO ANNO 2017 - CATASTO;24-10-2017;2505;0;335;1;Spese correnti;4;Trasferimenti correnti;1;Trasferimenti correnti a Amministrazioni Pubbliche;2;Trasferimenti correnti a Amministrazioni Locali;3;Trasferimenti correnti a Comuni;2017-10-24;
1001;1;"223,45";"223,45";STEDY SERVICE S.R.L.;ZBD1F9CB9A;SALDO Fatt.n. 12/PA  del 31/10/2017 CEDOLE LIBRARIE LIBRI SCUOLA DELL'OBBLIGO;06-11-2017;1960;0;259;1;Spese correnti;4;Trasferimenti correnti;2;Trasferimenti correnti a Famiglie;5;Altri trasferimenti a famiglie;999;Altri trasferimenti a famiglie n.a.c.;2017-11-06;
1002;1;"173,56";"173,56";POSTE ITALIANE S.P.A. BRESCIA C.M.P. Gestione Anticipi;ZD91D5C8F0;SALDO Fatt.n. 8717321166  del 19/10/2017 Fattura Elettronica relativa all'Identificativo Rendiconto 2094057262 B=047617871732116685;06-11-2017;214;0;99;1;Spese correnti;3;Acquisto di beni e servizi;1;Acquisto di beni;2;Altri beni di consumo;1;"Carta, cancelleria e stampati";2017-11-06;
1003;1;"151,00";"151,00";POSTE ITALIANE S.P.A. BRESCIA C.M.P. Gestione Anticipi;ZD91D5C8F0;SALDO Fatt.n. 8717320337  del 19/10/2017 Fattura Elettronica relativa all'Identificativo Rendiconto 2093654447;06-11-2017;214;0;99;1;Spese correnti;3;Acquisto di beni e servizi;1;Acquisto di beni;2;Altri beni di consumo;1;"Carta, cancelleria e stampati";2017-11-06;
1004;1;"86,72";"86,72";LA FORNERIA di Bertoletti M. & C. s.n.c.;ZE61FB5022;SALDO Fatt.n. 8 PA  del 11/10/2017 FATTURA P.A. FORNITURA DERRATE ALIMENTARI PER MENSA SCOLASTICA;06-11-2017;1930;0;305;1;Spese correnti;3;Acquisto di beni e servizi;1;Acquisto di beni;2;Altri beni di consumo;11;Generi alimentari;2017-11-06;
1005;1;"475,95";"475,95";IL BOTTEGHINO di Guizzetti Federica (Salumeria Alimenta;ZE81FB50AC;SALDO Fatt.n. 06 P.A.  del 30/09/2017 FORNITURA DERRATE ALIMENTARI MENSA SCOLASTICA;06-11-2017;1930;0;306;1;Spese correnti;3;Acquisto di beni e servizi;1;Acquisto di beni;2;Altri beni di consumo;11;Generi alimentari;2017-11-06;
1006;1;"177,90";"177,90";GAMMA DARFO s.r.l. (forniture per uffici);Z7E1FB11C9;SALDO Fatt.n. 252/PA  del 25/09/2017 Fattura pubbliche amministrazioni MATERIALE PER LABORATORIO INF.;06-11-2017;1720;0;285;1;Spese correnti;3;Acquisto di beni e servizi;1;Acquisto di beni;2;Altri beni di consumo;999;Altri beni e materiali di consumo n.a.c.;2017-11-06;
1007;1;"306,14";"873,01";GAMMA DARFO s.r.l. (forniture per uffici);Z621FB140B;ACCONTO Fatt.n. 253/PA  del 25/09/2017 Fattura pubbliche amministrazioni MATERIALE DI FACILE CONSUMO SCUOLA DELL'INFANZIA A. S. 2017;06-11-2017;1620;0;288;1;Spese correnti;3;Acquisto di beni e servizi;1;Acquisto di beni;2;Altri beni di consumo;1;"Carta, cancelleria e stampati";2017-11-06;
1007;2;"567,87";"873,01";GAMMA DARFO s.r.l. (forniture per uffici);Z621FB140B;SALDO Fatt.n. 253/PA  del 25/09/2017 Fattura pubbliche amministrazioni MATERIALE DI FACILE CONSUMO SCUOLA DELL'INFANZIA A. S. 2017;06-11-2017;1620;0;288;1;Spese correnti;3;Acquisto di beni e servizi;1;Acquisto di beni;2;Altri beni di consumo;1;"Carta, cancelleria e stampati";2017-11-06;
1008;1;"70,15";"70,15";GAMMA DARFO s.r.l. (forniture per uffici);Z441CCFFC8;SALDO Fatt.n. 255/PA  del 25/09/2017 Fattura pubbliche amministrazioni MATERIALE PER UFFICI COMUNALI;06-11-2017;214;0;58;1;Spese correnti;3;Acquisto di beni e servizi;1;Acquisto di beni;2;Altri beni di consumo;1;"Carta, cancelleria e stampati";2017-11-06;
1009;1;"187,67";"1.030,84";GAMMA DARFO s.r.l. (forniture per uffici);ZC31FB10C6;SALDO Fatt.n. 254/PA  del 25/09/2017 Fattura pubbliche amministrazioni - MATERIALE DI FACILE CONSUMO SCUOLA ELEMENTARE A.S. 2017;06-11-2017;1720;0;284;1;Spese correnti;3;Acquisto di beni e servizi;1;Acquisto di beni;2;Altri beni di consumo;999;Altri beni e materiali di consumo n.a.c.;2017-11-06;
1009;2;"843,17";"1.030,84";GAMMA DARFO s.r.l. (forniture per uffici);ZC31FB10C6;ACCONTO Fatt.n. 254/PA  del 25/09/2017 Fattura pubbliche amministrazioni - MATERIALE DI FACILE CONSUMO SCUOLA ELEMENTARE A.S. 2017;06-11-2017;1720;0;284;1;Spese correnti;3;Acquisto di beni e servizi;1;Acquisto di beni;2;Altri beni di consumo;999;Altri beni e materiali di consumo n.a.c.;2017-11-06;
1010;1;"150,02";"150,02";GAMMA DARFO s.r.l. (forniture per uffici);ZBD1F9CB9A;SALDO Fatt.n. 318/PA  del 19/10/2017 Fattura accompagantoria rip PA FORNITURA LIBRI DI TESTO SCUOLA DELL'OBBLIGO;06-11-2017;1960;0;259;1;Spese correnti;4;Trasferimenti correnti;2;Trasferimenti correnti a Famiglie;5;Altri trasferimenti a famiglie;999;Altri trasferimenti a famiglie n.a.c.;2017-11-06;
1011;1;"270,18";"270,18";FARMEC S.A.S.;ZB22031828;SALDO Fatt.n. 000027/2017  del 10/10/2017 SISTEMAZIONE LAVASTOVIGLIE PER MENSA SCOLASTICA;06-11-2017;1930;0;329;1;Spese correnti;3;Acquisto di beni e servizi;1;Acquisto di beni;2;Altri beni di consumo;11;Generi alimentari;2017-11-06;
1012;1;"1.788,57";"1.788,57";FALETTI MULTISTORE SRL;ZBD1F9CB9A;SALDO Fatt.n. 15/F  del 24/10/2017 VENDITA LIBRI DI TESTO SCUOLA DELL'OBBLIGO A.S. 2017/18;06-11-2017;1960;0;259;1;Spese correnti;4;Trasferimenti correnti;2;Trasferimenti correnti a Famiglie;5;Altri trasferimenti a famiglie;999;Altri trasferimenti a famiglie n.a.c.;2017-11-06;
1013;1;"239,53";"239,53";E.S.C.O. COMUNI S.R.L.; ;SALDO Fatt.n. 28/PTC  del 12/10/2017 FATTURA EMESSA /TC (1) 50% SCAMBIO SUL POSTO - FOTOVOLTAICO 2^ SEMESTRE 2016;06-11-2017;1720;0;334;1;Spese correnti;3;Acquisto di beni e servizi;1;Acquisto di beni;2;Altri beni di consumo;999;Altri beni e materiali di consumo n.a.c.;2017-11-06;
1014;1;"7.424,68";"7.424,68";E.ON Energia S.p.A.;Z9D1E16E0F;SALDO Fatt.n. 40008956  del 24/10/2017 Le inviamo la presente bolletta fornitura di gas PDR 01550000365420 CONGUAGLIO ANNI PRECEDENTI SCUOLA MATERNA;06-11-2017;1729;0;402;1;Spese correnti;4;Trasferimenti correnti;1;Trasferimenti correnti a Amministrazioni Pubbliche;2;Trasferimenti correnti a Amministrazioni Locali;6;Trasferimenti correnti a Comunit� Montane;2017-11-06;
1015;1;"8.302,08";"8.302,08";E.ON Energia S.p.A.;Z9D1E16E0F;SALDO Fatt.n. 40008955  del 20/10/2017 Le inviamo la presente bolletta fornitura di gas PDR 01550000365420 CONGUAGLIO ANNI PRECEDENTI SCUOLA MATERNA;06-11-2017;1729;0;402;1;Spese correnti;4;Trasferimenti correnti;1;Trasferimenti correnti a Amministrazioni Pubbliche;2;Trasferimenti correnti a Amministrazioni Locali;6;Trasferimenti correnti a Comunit� Montane;2017-11-06;
1016;1;"683,20";"683,20";"COOPERATIVA SOCIALE SEBINA SOC. COOP. a R.L." - ONLUS;Z981FC0AF8;SALDO Fatt.n. 152/PA  del 30/10/2017 SERVIZIO REFEZIONE C/O LA MENSA SCOLASTICA MESE DI SETTEMBRE 2017;06-11-2017;1930;0;295;1;Spese correnti;3;Acquisto di beni e servizi;1;Acquisto di beni;2;Altri beni di consumo;11;Generi alimentari;2017-11-06;
1031;1;"3.068,90";"3.068,90";AUTONOLEGGIO VALCALEPIO DI CRISTINELLI TOMASINO & C. S.;ZE41F755DE;SALDO Fatt.n. 84/2017  del 31/10/2017 SERVIZIO TRASPORTO SCOLASTICO EFFETTUATO NEL MESE DI OTTOBRE 2017 IVA DA VERSARE A CURA DEL CESSIONARIO O COMMITTENTE AI SENSI DELL'ART.17TER DEL DPR 633/1972 CONTO DEDICATO LEGGE N. 136/2010;13-11-2017;1941;0;273;1;Spese correnti;3;Acquisto di beni e servizi;2;Acquisto di servizi;99;Altri servizi;999;Altri servizi diversi n.a.c.;2017-11-13;
1032;1;"30,18";"30,18";ARTICOLANDO DI BONATI ANGELO;ZBD1F9CB9A;SALDO Fatt.n. 7  del 02/11/2017 Fornitura libri di testo a seguito emissione cedole librarie anno scolastico 2017 2018;13-11-2017;1960;0;259;1;Spese correnti;4;Trasferimenti correnti;2;Trasferimenti correnti a Famiglie;5;Altri trasferimenti a famiglie;999;Altri trasferimenti a famiglie n.a.c.;2017-11-13;
1033;1;"1.445,37";"1.445,37";AERRE DI PASINELLI A. E CRETTI R SNC;Z781FB4DF0;SALDO Fatt.n. 8/PA  del 31/10/2017 CIG 78937879FORNITURA DERRATE ALIMENTARI MENSA SCOLASTICA MESE DI OTTOBRE 2017;13-11-2017;1930;0;309;1;Spese correnti;3;Acquisto di beni e servizi;1;Acquisto di beni;2;Altri beni di consumo;11;Generi alimentari;2017-11-13;
1034;1;"186,02";"186,02";"CARTOL.  COLOMBO A. R. &amp; CATTANEO A. M.  S.N.C.";ZBD1F9CB9A;SALDO Fatt.n. 8/PA  del 03/11/2017 FORNITURA LIBRI DI TESTO ANNO SCOLASTICO 2017/18;13-11-2017;1960;0;259;1;Spese correnti;4;Trasferimenti correnti;2;Trasferimenti correnti a Famiglie;5;Altri trasferimenti a famiglie;999;Altri trasferimenti a famiglie n.a.c.;2017-11-13;
1035;1;"139,08";"139,08";ECOLOGIA SEBINA SRL;ZD61DBC981;SALDO Fatt.n. 196 / PA  del 31/10/2017 FATTURA PA ANALISI TAMPONI AMBIENTALI C/O LA MENSA SCOLASTICA;13-11-2017;1930;0;125;1;Spese correnti;3;Acquisto di beni e servizi;1;Acquisto di beni;2;Altri beni di consumo;11;Generi alimentari;2017-11-13;
1036;1;"77,80";"77,80";E.ON Energia S.p.A.;Z1F1EE2A79;SALDO Fatt.n. 40009699  del 02/11/2017 Le inviamo la bolletta relativa ai consumi del periodo dal 01/09/2017 al 30/09/2017 fornitura di gas PDR 01550000365820;13-11-2017;1620;0;211;1;Spese correnti;3;Acquisto di beni e servizi;1;Acquisto di beni;2;Altri beni di consumo;1;"Carta, cancelleria e stampati";2017-11-13;
1037;1;"188,88";"188,88";GAMMA DARFO s.r.l. (forniture per uffici);Z441CCFFC8;SALDO Fatt.n. 365/PA  del 31/10/2017 Fattura pubbliche amministrazioni FORNITURA CANCELLERIA PER UFFICI COMUNALI;13-11-2017;214;0;279;1;Spese correnti;3;Acquisto di beni e servizi;1;Acquisto di beni;2;Altri beni di consumo;1;"Carta, cancelleria e stampati";2017-11-13;
1038;1;"165,70";"165,70";GAMMA DARFO s.r.l. (forniture per uffici);Z722037F81;SALDO Fatt.n. 355/PA  del 30/10/2017 Fattura accompagantoria rip PA;13-11-2017;1720;0;333;1;Spese correnti;3;Acquisto di beni e servizi;1;Acquisto di beni;2;Altri beni di consumo;999;Altri beni e materiali di consumo n.a.c.;2017-11-13;
1039;1;"683,20";"683,20";GAMMA DARFO s.r.l. (forniture per uffici);Z4F201096F;SALDO Fatt.n. 342/PA  del 26/10/2017 Fattura pubbliche amministrazioni;13-11-2017;1720;0;322;1;Spese correnti;3;Acquisto di beni e servizi;1;Acquisto di beni;2;Altri beni di consumo;999;Altri beni e materiali di consumo n.a.c.;2017-11-13;
1040;1;"178,51";"178,51";GRAFICHE GASPARI S.R.L.;Z6D1CCFF11;SALDO Fatt.n. 14595  del 31/10/2017 FORNITURA MATERIALE PER UFFICIO ANAGRAFE;13-11-2017;214;0;68;1;Spese correnti;3;Acquisto di beni e servizi;1;Acquisto di beni;2;Altri beni di consumo;1;"Carta, cancelleria e stampati";2017-11-13;
1041;1;"552,75";"552,75";STAZIONE SERVIZIO IP di Gualeni S.;ZF31CCE374;SALDO Fatt.n. 0000034/EL  del 31/10/2017 FORNITURA CARBURANTE MESE DI OTTOBRE 2017;13-11-2017;4621;0;44;1;Spese correnti;3;Acquisto di beni e servizi;2;Acquisto di servizi;9;Manutenzione ordinaria e riparazioni;1;"Manutenzione ordinaria e riparazioni di mezzi di trasporto ad uso civile, di sicurezza e ordine pubblico";2017-11-13;
1042;1;"599,05";"599,05";IL BOTTEGHINO di Guizzetti Federica (Salumeria Alimenta;ZE81FB50AC;SALDO Fatt.n. 07 P.A.  del 31/10/2017 FORNITURA DERRATE ALIMENTARI MENSA SCOLASTICA MESE DI OTTOBRE 2017;13-11-2017;1930;0;306;1;Spese correnti;3;Acquisto di beni e servizi;1;Acquisto di beni;2;Altri beni di consumo;11;Generi alimentari;2017-11-13;
1043;1;"871,71";"871,71";LA FORNERIA di Bertoletti M. & C. s.n.c.;ZE61FB5022;SALDO Fatt.n. 9 PA  del 06/11/2017 FATTURA P.A. FORNITURA DERRATE ALIMENTARI MENSA SCOLASTICA MESE DI OTTOBRE 2017;13-11-2017;1930;0;305;1;Spese correnti;3;Acquisto di beni e servizi;1;Acquisto di beni;2;Altri beni di consumo;11;Generi alimentari;2017-11-13;
1044;1;"1.995,94";"1.995,94";IMPRESA EDILE NEGRINELLI DI NEGRINELLI BRUNO E TIZIANO;Z4E1D16713;SALDO Fatt.n. 7/PA2017  del 20/10/2017 Appalto lavori edili 2017  ID 82900416 GENNAIO-AGOSTO 2017;13-11-2017;3030;0;63;1;Spese correnti;4;Trasferimenti correnti;1;Trasferimenti correnti a Amministrazioni Pubbliche;2;Trasferimenti correnti a Amministrazioni Locali;6;Trasferimenti correnti a Comunit� Montane;2017-11-13;
1045;1;"1.422,15";"1.422,15";IMPRESA EDILE NEGRINELLI DI NEGRINELLI BRUNO E TIZIANO;Z4E1D16713;SALDO Fatt.n. 8/PA2017  del 20/10/2017 Appalto lavori edili 2017  ID 82900416 GENNAIO-AGOSTO 2017;13-11-2017;1720;0;65;1;Spese correnti;3;Acquisto di beni e servizi;1;Acquisto di beni;2;Altri beni di consumo;999;Altri beni e materiali di consumo n.a.c.;2017-11-13;
1046;1;"1.000,00";"1.000,00";IMPRESA EDILE NEGRINELLI DI NEGRINELLI BRUNO E TIZIANO;Z4E1D16713;SALDO Fatt.n. 9/PA2017  del 20/10/2017 Appalto lavori edili 2017  ID 82900416 GENNAIO-AGOSTO 2017;13-11-2017;1620;0;66;1;Spese correnti;3;Acquisto di beni e servizi;1;Acquisto di beni;2;Altri beni di consumo;1;"Carta, cancelleria e stampati";2017-11-13;
1047;1;"1.050,21";"1.050,21";IMPRESA EDILE NEGRINELLI DI NEGRINELLI BRUNO E TIZIANO;Z4E1D16713;SALDO Fatt.n. 10/PA2017  del 20/10/2017 Appalto lavori edili 2017  ID 82900416 LAVORI DI PRONTO INTERVENTO GENNAIO-AGOSTO 2017;13-11-2017;2500;0;62;1;Spese correnti;3;Acquisto di beni e servizi;1;Acquisto di beni;2;Altri beni di consumo;999;Altri beni e materiali di consumo n.a.c.;2017-11-13;
1048;1;"2.986,07";"2.986,07";IMPRESA EDILE NEGRINELLI DI NEGRINELLI BRUNO E TIZIANO;Z4E1D16713;SALDO Fatt.n. 11/PA2017  del 20/10/2017 Appalto lavori edili 2017  ID 82900416 GENNAIO-AGOSTO 2017;13-11-2017;4740;0;64;1;Spese correnti;3;Acquisto di beni e servizi;2;Acquisto di servizi;9;Manutenzione ordinaria e riparazioni;8;Manutenzione ordinaria e riparazioni di beni immobili;2017-11-13;
1049;1;"1.732,40";"1.732,40";IMPRESA EDILE NEGRINELLI DI NEGRINELLI BRUNO E TIZIANO;Z541FB1FF5;SALDO Fatt.n. 12/PA2017  del 20/10/2017 POSIZIONAMENTO ERBABLOC PARCHEGGIO COLLEONI;13-11-2017;6343;0;292;2;Spese in conto capitale;2;Investimenti fissi lordi e acquisto di terreni;1;Beni materiali;9;Beni immobili;12;Infrastrutture stradali;2017-11-13;
1050;1;"687,72";"687,72";PARIS LUCA - MACELLERIA -;Z6F1FB506A;SALDO Fatt.n. 18/PA  del 31/10/2017 SOLTO: DETERMONA N.207 DEL18/09/2017  CIG: Z6F1FB506A FORNITURA DERRATE ALIMENTARI PER MENSA SCOLASTICA MESE DI TOOTBRE 2017;13-11-2017;1930;0;307;1;Spese correnti;3;Acquisto di beni e servizi;1;Acquisto di beni;2;Altri beni di consumo;11;Generi alimentari;2017-11-13;
1051;1;"915,00";"915,00";PUBBLIVALLE SAS DI MARTINELLI LAURA;Z582030F96;SALDO Fatt.n. FATTPA 1_17  del 07/11/2017 SERVIZIO PUBBLICHE AFFISSIONI OTTOBRE -NOVEMBRE 2017;13-11-2017;6343;0;327;2;Spese in conto capitale;2;Investimenti fissi lordi e acquisto di terreni;1;Beni materiali;9;Beni immobili;12;Infrastrutture stradali;2017-11-13;
1052;1;"602,15";"602,15";DITTA SIGNORINI CLAUDIO;ZD21FB4FA5;SALDO Fatt.n. 15/1  del 31/10/2017 FATTURA N. 15/1 DEL 31.10.2017 FORNITURA DERRATE ALIMENTARI PER MENSA SCOLASTICA MESE DI OTTOBRE 2017;13-11-2017;1930;0;308;1;Spese correnti;3;Acquisto di beni e servizi;1;Acquisto di beni;2;Altri beni di consumo;11;Generi alimentari;2017-11-13;
1053;1;"220,60";"220,60";VAL CAVALLINA SERVIZI SRL;ZAE2003F92;SALDO Fatt.n. 163/PE  del 30/09/2017 FATTURA IMMEDIATA (E) FORNITURA SACCHI ROSSI PER UMIDO;13-11-2017;214;0;320;1;Spese correnti;3;Acquisto di beni e servizi;1;Acquisto di beni;2;Altri beni di consumo;1;"Carta, cancelleria e stampati";2017-11-13;
1054;1;"106,21";"106,21";FRATERNITA' SISTEMI IMPRESA SOCIALE;ZF11D3CF9A;ACCONTO Fatt.n. 3/1449  del 18/09/2017 PREST.SERVIZI;13-11-2017;276;0;84;1;Spese correnti;3;Acquisto di beni e servizi;2;Acquisto di servizi;3;Aggi di riscossione;999;Altri aggi di riscossione n.a.c.;2017-11-13;
1077;1;"192,06";"192,06";QCOM INTERACTIVE SOLUTION;Z8D1D42A4E;ACCONTO Fatt.n. 001865/PA  del 30/09/2017 CANONE TELEFONICO MESE DI SETTEMBRE 2017;15-11-2017;214;0;86;1;Spese correnti;3;Acquisto di beni e servizi;1;Acquisto di beni;2;Altri beni di consumo;1;"Carta, cancelleria e stampati";2017-11-15;
1078;1;"42,25";"42,25";QCOM INTERACTIVE SOLUTION;Z8D1D42A4E;SALDO Fatt.n. 001865/PA  del 30/09/2017 CANONE TELEFONICO MESE DI SETTEMBRE 2017;15-11-2017;214;0;86;1;Spese correnti;3;Acquisto di beni e servizi;1;Acquisto di beni;2;Altri beni di consumo;1;"Carta, cancelleria e stampati";2017-11-15;
1083;1;"9,73";"9,73";INTESA SANPAOLO; ;ACCONTO Fatt.n. V6000407  del 16/10/2017 CANONE FIRMA DIGITALE;20-11-2017;214;0;81;1;Spese correnti;3;Acquisto di beni e servizi;1;Acquisto di beni;2;Altri beni di consumo;1;"Carta, cancelleria e stampati";2017-11-20;
1084;1;"2,92";"2,92";INTESA SANPAOLO; ;SALDO Fatt.n. V6000407  del 16/10/2017 CANONE FIRMA DIGITALE;20-11-2017;214;0;81;1;Spese correnti;3;Acquisto di beni e servizi;1;Acquisto di beni;2;Altri beni di consumo;1;"Carta, cancelleria e stampati";2017-11-20;
1085;1;"199,27";"199,27";MULTIUTILITY S.P.A.;Z461DB31F0;ACCONTO Fatt.n. 41703863618  del 26/10/2017 energia elettrica periodo 01/09/2017 30/09/2017 conto contrattuale 40000852 COMUNE DI SOLTO COLLINA -;20-11-2017;214;0;117;1;Spese correnti;3;Acquisto di beni e servizi;1;Acquisto di beni;2;Altri beni di consumo;1;"Carta, cancelleria e stampati";2017-11-20;
1086;1;"44,84";"44,84";MULTIUTILITY S.P.A.;Z461DB31F0;SALDO Fatt.n. 41703863618  del 26/10/2017 energia elettrica periodo 01/09/2017 30/09/2017 conto contrattuale 40000852 COMUNE DI SOLTO COLLINA -;20-11-2017;214;0;117;1;Spese correnti;3;Acquisto di beni e servizi;1;Acquisto di beni;2;Altri beni di consumo;1;"Carta, cancelleria e stampati";2017-11-20;
1087;1;"4.766,38";"4.766,38";MULTIUTILITY S.P.A.;ZE21DB32CE;ACCONTO Fatt.n. 41703863619  del 26/10/2017 energia elettrica periodo 01/09/2017 17/10/2017 conto contrattuale 40000853 COMUNE DI SOLTO COLLINA -;20-11-2017;4785;0;116;1;Spese correnti;3;Acquisto di beni e servizi;2;Acquisto di servizi;5;Utenze e canoni;4;Energia elettrica;2017-11-20;
1088;1;"1.049,60";"1.049,60";MULTIUTILITY S.P.A.;ZE21DB32CE;SALDO Fatt.n. 41703863619  del 26/10/2017 energia elettrica periodo 01/09/2017 17/10/2017 conto contrattuale 40000853 COMUNE DI SOLTO COLLINA -;20-11-2017;4785;0;116;1;Spese correnti;3;Acquisto di beni e servizi;2;Acquisto di servizi;5;Utenze e canoni;4;Energia elettrica;2017-11-20;
1106;1;"100,00";"100,00";CARRARA COLORI DI CARRARA VALTER G.;Z0420B0002;SALDO Fatt.n. 62/PA  del 20/11/2017 FORNITURA PRODOTTI PER VERNICIARE OGGETTI NATALIZI;24-11-2017;4440;0;357;1;Spese correnti;4;Trasferimenti correnti;2;Trasferimenti correnti a Famiglie;5;Altri trasferimenti a famiglie;999;Altri trasferimenti a famiglie n.a.c.;2017-11-24;
1107;1;"1.560,00";"1.560,00";CANTAMESSE LEONE;ZF41F1CB85;ACCONTO Fatt.n. 41  del 07/11/2017 SUPPORTO RESPONSABILE SETTORE TECNICO - SECONDO SEMESTRE A ACCONTO;24-11-2017;272;0;236;1;Spese correnti;3;Acquisto di beni e servizi;2;Acquisto di servizi;10;Consulenze;1;"Incarichi libero professionali di studi, ricerca e consulenza";2017-11-24;
1108;1;"343,20";"343,20";CANTAMESSE LEONE;ZF41F1CB85;SALDO Fatt.n. 41  del 07/11/2017 SUPPORTO RESPONSABILE SETTORE TECNICO - SECONDO SEMESTRE A ACCONTO;24-11-2017;272;0;236;1;Spese correnti;3;Acquisto di beni e servizi;2;Acquisto di servizi;10;Consulenze;1;"Incarichi libero professionali di studi, ricerca e consulenza";2017-11-24;
1109;1;"936,00";"936,00";CANTAMESSE LEONE;Z5B2008658;ACCONTO Fatt.n. 42  del 07/11/2017;24-11-2017;6343;0;314;2;Spese in conto capitale;2;Investimenti fissi lordi e acquisto di terreni;1;Beni materiali;9;Beni immobili;12;Infrastrutture stradali;2017-11-24;
1110;1;"206,92";"206,92";CANTAMESSE LEONE;Z5B2008658;SALDO Fatt.n. 42  del 07/11/2017;24-11-2017;6343;0;314;2;Spese in conto capitale;2;Investimenti fissi lordi e acquisto di terreni;1;Beni materiali;9;Beni immobili;12;Infrastrutture stradali;2017-11-24;
1111;1;"500,00";"500,00";DITTA ECOITALIA EVOLUTION S.R.L.;ZE61C75FFF;ACCONTO Fatt.n. 207  del 31/10/2017;24-11-2017;214;0;96;1;Spese correnti;3;Acquisto di beni e servizi;1;Acquisto di beni;2;Altri beni di consumo;1;"Carta, cancelleria e stampati";2017-11-24;
1112;1;"153,40";"153,40";DITTA ECOITALIA EVOLUTION S.R.L.;ZE61C75FFF;SALDO Fatt.n. 207  del 31/10/2017;24-11-2017;1725;0;97;1;Spese correnti;3;Acquisto di beni e servizi;2;Acquisto di servizi;99;Altri servizi;999;Altri servizi diversi n.a.c.;2017-11-24;
1114;1;"380,00";"380,00";LA BOTTEGA DEL FIORE DI ZANNI GREGORIO;ZE32074D2C;SALDO Fatt.n. 5/PA  del 04/11/2017 FORNITURA CORONE ALLORO E VASI CRISANTEMI PER CIMITERI;24-11-2017;245;0;347;1;Spese correnti;3;Acquisto di beni e servizi;1;Acquisto di beni;2;Altri beni di consumo;999;Altri beni e materiali di consumo n.a.c.;2017-11-24;
1115;1;"1.562,60";"1.562,60";AZIENDA VIVAISTICA PARIS GIUSEPPE;ZC71F77931;SALDO Fatt.n. 2M PA  del 27/09/2017 POTATURA STRAORDINARIA CAUSA MALTEMPO;24-11-2017;6343;0;252;2;Spese in conto capitale;2;Investimenti fissi lordi e acquisto di terreni;1;Beni materiali;9;Beni immobili;12;Infrastrutture stradali;2017-11-24;
1116;1;"9.394,00";"9.394,00";AZIENDA VIVAISTICA PARIS GIUSEPPE;Z331CD06F7;SALDO Fatt.n. 1M PA  del 26/09/2017 MANUTENZIONE SPAZI VERDI ANNO 2017;24-11-2017;3800;0;61;1;Spese correnti;3;Acquisto di beni e servizi;2;Acquisto di servizi;99;Altri servizi;999;Altri servizi diversi n.a.c.;2017-11-24;
1117;1;"48,58";"48,58";QCINQUE COMUNICAZIONE & PROMOZIONE S.A.S.;Z2620B7215;SALDO Fatt.n. 13 PA  del 13/11/2017 Ft Split Payment ex art.17-ter DPR 633/72 FORNITURA FASCE DA CAPITANO;24-11-2017;214;0;360;1;Spese correnti;3;Acquisto di beni e servizi;1;Acquisto di beni;2;Altri beni di consumo;1;"Carta, cancelleria e stampati";2017-11-24;
1118;1;"2.324,23";"2.324,23";SIBESTAR s.r.l.;ZC71E8189C;SALDO Fatt.n. 483/FT  del 10/11/2017 Fattura ImmediataSEGNALETICA ORIZZONTALE ANNO 2017;24-11-2017;6343;0;187;2;Spese in conto capitale;2;Investimenti fissi lordi e acquisto di terreni;1;Beni materiali;9;Beni immobili;12;Infrastrutture stradali;2017-11-24;
1119;1;"266,50";"266,50";EOL SOLUZIONE S.R.L.;Z4E2038387;SALDO Fatt.n. 309/F  del 10/11/2017 FORMAZIONE ANTICORRUZIONE 2017 - FORMAZIONE ON LINE;24-11-2017;214;0;332;1;Spese correnti;3;Acquisto di beni e servizi;1;Acquisto di beni;2;Altri beni di consumo;1;"Carta, cancelleria e stampati";2017-11-24;
1120;1;"1.708,00";"1.708,00";STUDIO CAVAGGIONI S.C.A.R.L.;Z461F647D0;SALDO Fatt.n. 377/FE/2017  del 31/10/2017 469 - COMUNE DI SOLTO COLLINA/ - AGGIORNAMENTO STIMA - det.163_21.07.2017;24-11-2017;6343;0;246;2;Spese in conto capitale;2;Investimenti fissi lordi e acquisto di terreni;1;Beni materiali;9;Beni immobili;12;Infrastrutture stradali;2017-11-24;
1136;1;"200,00";"200,00";SELVA JESSICA; ;BORSE DI STUDIO ANNO 2017;11-12-2017;1965;0;392;1;Spese correnti;4;Trasferimenti correnti;2;Trasferimenti correnti a Famiglie;3;"Borse di studio, dottorati di ricerca e contratti di formazione specialistica area medica";1;Borse di studio;2017-12-11;
1137;1;"200,00";"200,00";CONTESSI LAURA; ;BORSE DI STUDIO ANNO 2017;11-12-2017;1965;0;392;1;Spese correnti;4;Trasferimenti correnti;2;Trasferimenti correnti a Famiglie;3;"Borse di studio, dottorati di ricerca e contratti di formazione specialistica area medica";1;Borse di studio;2017-12-11;
1138;1;"150,00";"150,00";CAFFI ANDREA; ;BORSE DI STUDIO ANNO 2017;11-12-2017;1965;0;392;1;Spese correnti;4;Trasferimenti correnti;2;Trasferimenti correnti a Famiglie;3;"Borse di studio, dottorati di ricerca e contratti di formazione specialistica area medica";1;Borse di studio;2017-12-11;
1139;1;"150,00";"150,00";GHIDINI DAVIDE; ;BORSE DI STUDIO ANNO 2017;11-12-2017;1965;0;392;1;Spese correnti;4;Trasferimenti correnti;2;Trasferimenti correnti a Famiglie;3;"Borse di studio, dottorati di ricerca e contratti di formazione specialistica area medica";1;Borse di studio;2017-12-11;
1140;1;"150,00";"150,00";BIANCHI BEATRICE; ;BORSE DI STUDIO ANNO 2017;11-12-2017;1965;0;392;1;Spese correnti;4;Trasferimenti correnti;2;Trasferimenti correnti a Famiglie;3;"Borse di studio, dottorati di ricerca e contratti di formazione specialistica area medica";1;Borse di studio;2017-12-11;
1141;1;"100,00";"100,00";ZANINI SIMONE; ;BORSE DI STUDIO ANNO 2017;11-12-2017;1965;0;392;1;Spese correnti;4;Trasferimenti correnti;2;Trasferimenti correnti a Famiglie;3;"Borse di studio, dottorati di ricerca e contratti di formazione specialistica area medica";1;Borse di studio;2017-12-11;
1142;1;"150,00";"150,00";VEZZANI PAOLO; ;BORSE DI STUDIO ANNO 2017;11-12-2017;1965;0;392;1;Spese correnti;4;Trasferimenti correnti;2;Trasferimenti correnti a Famiglie;3;"Borse di studio, dottorati di ricerca e contratti di formazione specialistica area medica";1;Borse di studio;2017-12-11;
1143;1;"50,00";"50,00";FRANZINI LUCIA; ;BORSE DI STUDIO ANNO 2017;11-12-2017;1965;0;392;1;Spese correnti;4;Trasferimenti correnti;2;Trasferimenti correnti a Famiglie;3;"Borse di studio, dottorati di ricerca e contratti di formazione specialistica area medica";1;Borse di studio;2017-12-11;
1144;1;"50,00";"50,00";GUIZZETTI SILVANA; ;BORSE DI STUDIO ANNO 2017;11-12-2017;1965;0;392;1;Spese correnti;4;Trasferimenti correnti;2;Trasferimenti correnti a Famiglie;3;"Borse di studio, dottorati di ricerca e contratti di formazione specialistica area medica";1;Borse di studio;2017-12-11;
1145;1;"50,00";"50,00";BRIGHENTI ENRICA GIULIANA; ;BORSE DI STUDIO ANNO 2017;11-12-2017;1965;0;392;1;Spese correnti;4;Trasferimenti correnti;2;Trasferimenti correnti a Famiglie;3;"Borse di studio, dottorati di ricerca e contratti di formazione specialistica area medica";1;Borse di studio;2017-12-11;
1146;1;"50,00";"50,00";COTIGA MIRELA; ;BORSE DI STUDIO ANNO 2017;11-12-2017;1965;0;392;1;Spese correnti;4;Trasferimenti correnti;2;Trasferimenti correnti a Famiglie;3;"Borse di studio, dottorati di ricerca e contratti di formazione specialistica area medica";1;Borse di studio;2017-12-11;
1147;1;"50,00";"50,00";CASSARINO FILIPPO; ;BORSE DI STUDIO ANNO 2017;11-12-2017;1965;0;392;1;Spese correnti;4;Trasferimenti correnti;2;Trasferimenti correnti a Famiglie;3;"Borse di studio, dottorati di ricerca e contratti di formazione specialistica area medica";1;Borse di studio;2017-12-11;
1148;1;"50,00";"50,00";PAPAJ ERMAL; ;BORSE DI STUDIO ANNO 2017;11-12-2017;1965;0;392;1;Spese correnti;4;Trasferimenti correnti;2;Trasferimenti correnti a Famiglie;3;"Borse di studio, dottorati di ricerca e contratti di formazione specialistica area medica";1;Borse di studio;2017-12-11;
1149;1;"100,00";"100,00";MINELLI FEDERICA; ;BORSE DI STUDIO ANNO 2017;11-12-2017;1965;0;392;1;Spese correnti;4;Trasferimenti correnti;2;Trasferimenti correnti a Famiglie;3;"Borse di studio, dottorati di ricerca e contratti di formazione specialistica area medica";1;Borse di studio;2017-12-11;
1150;1;"100,00";"100,00";VIEIRA CARLA; ;BORSE DI STUDIO ANNO 2017;11-12-2017;1965;0;392;1;Spese correnti;4;Trasferimenti correnti;2;Trasferimenti correnti a Famiglie;3;"Borse di studio, dottorati di ricerca e contratti di formazione specialistica area medica";1;Borse di studio;2017-12-11;
1151;1;"100,00";"100,00";BREVI MARINA; ;BORSE DI STUDIO ANNO 2017;11-12-2017;1965;0;392;1;Spese correnti;4;Trasferimenti correnti;2;Trasferimenti correnti a Famiglie;3;"Borse di studio, dottorati di ricerca e contratti di formazione specialistica area medica";1;Borse di studio;2017-12-11;
1152;1;"100,00";"100,00";FENAROLI AMBRA; ;BORSE DI STUDIO ANNO 2017;11-12-2017;1965;0;392;1;Spese correnti;4;Trasferimenti correnti;2;Trasferimenti correnti a Famiglie;3;"Borse di studio, dottorati di ricerca e contratti di formazione specialistica area medica";1;Borse di studio;2017-12-11;
1153;1;"100,00";"100,00";CASSARINO FILIPPO; ;BORSE DI STUDIO ANNO 2017;11-12-2017;1965;0;392;1;Spese correnti;4;Trasferimenti correnti;2;Trasferimenti correnti a Famiglie;3;"Borse di studio, dottorati di ricerca e contratti di formazione specialistica area medica";1;Borse di studio;2017-12-11;
1154;1;"100,00";"100,00";PARIS VERONICA; ;BORSE DI STUDIO ANNO 2017;11-12-2017;1965;0;392;1;Spese correnti;4;Trasferimenti correnti;2;Trasferimenti correnti a Famiglie;3;"Borse di studio, dottorati di ricerca e contratti di formazione specialistica area medica";1;Borse di studio;2017-12-11;
1166;1;"7.743,45";"7.743,45";ERARIO DELLO STATO; ;VERSAMENTO IVA SU FATTURE N. 1 E 2 DEL 2017;13-12-2017;273;0;363;1;Spese correnti;10;Altre spese correnti;3;Versamenti IVA a debito;1;Versamenti IVA a debito per le gestioni commerciali;1;Versamenti IVA a debito per le gestioni commerciali;2017-12-13;
1167;1;"990,12";"990,12";AERRE DI PASINELLI A. E CRETTI R SNC;Z781FB4DF0;SALDO Fatt.n. 9/PA  del 30/11/2017 CIG 78937879CIG 78937879 FORNITURA DERRATE ALIMENTARI MESE DI NOVEMBRE 2017;13-12-2017;1930;0;309;1;Spese correnti;3;Acquisto di beni e servizi;1;Acquisto di beni;2;Altri beni di consumo;11;Generi alimentari;2017-12-13;
1168;1;"3.068,90";"3.068,90";AUTONOLEGGIO VALCALEPIO DI CRISTINELLI TOMASINO & C. S.;ZE41F755DE;SALDO Fatt.n. 98/2017  del 30/11/2017 SERVIZIO TRASPORTO SCOLASTICO EFFETTUATO NEL MESE DI NOVEMBRE 2017 IVA DA VERSARE A CURA DEL CESSIONARIO O COMMITTENTE AI SENSI DELL'ART.17TER DEL DPR 633/1972 CONTO DEDICATO LEGGE N. 136/2010;13-12-2017;1941;0;273;1;Spese correnti;3;Acquisto di beni e servizi;2;Acquisto di servizi;99;Altri servizi;999;Altri servizi diversi n.a.c.;2017-12-13;
1169;1;"666,45";"666,45";COMBOOK S.A.S;ZBD1F9CB9A;SALDO Fatt.n. 19FE  del 23/11/2017 FORNITURA LIBRI DI TESTO PER SCUOLA PRIMARIA;13-12-2017;1960;0;259;1;Spese correnti;4;Trasferimenti correnti;2;Trasferimenti correnti a Famiglie;5;Altri trasferimenti a famiglie;999;Altri trasferimenti a famiglie n.a.c.;2017-12-13;
1170;1;"1.560,00";"1.560,00";CANTAMESSE LEONE;ZF41F1CB85;ACCONTO Fatt.n. 43  del 29/11/2017;13-12-2017;272;0;236;1;Spese correnti;3;Acquisto di beni e servizi;2;Acquisto di servizi;10;Consulenze;1;"Incarichi libero professionali di studi, ricerca e consulenza";2017-12-13;
1171;1;"343,20";"343,20";CANTAMESSE LEONE;ZF41F1CB85;SALDO Fatt.n. 43  del 29/11/2017;13-12-2017;272;0;236;1;Spese correnti;3;Acquisto di beni e servizi;2;Acquisto di servizi;10;Consulenze;1;"Incarichi libero professionali di studi, ricerca e consulenza";2017-12-13;
1172;1;"683,20";"683,20";"COOPERATIVA SOCIALE SEBINA SOC. COOP. a R.L." - ONLUS;Z981FC0AF8;SALDO Fatt.n. 162/PA  del 24/11/2017 SERVIZIO REFEZIONE SCOLASTICA MESE DI OTTOBRE 2017;13-12-2017;1930;0;295;1;Spese correnti;3;Acquisto di beni e servizi;1;Acquisto di beni;2;Altri beni di consumo;11;Generi alimentari;2017-12-13;
1173;1;"500,00";"500,00";DITTA ECOITALIA EVOLUTION S.R.L.;ZE61C75FFF;ACCONTO Fatt.n. 227  del 30/11/2017;13-12-2017;214;0;96;1;Spese correnti;3;Acquisto di beni e servizi;1;Acquisto di beni;2;Altri beni di consumo;1;"Carta, cancelleria e stampati";2017-12-13;
1174;1;"153,40";"153,40";DITTA ECOITALIA EVOLUTION S.R.L.;ZE61C75FFF;SALDO Fatt.n. 227  del 30/11/2017;13-12-2017;1725;0;97;1;Spese correnti;3;Acquisto di beni e servizi;2;Acquisto di servizi;99;Altri servizi;999;Altri servizi diversi n.a.c.;2017-12-13;
1175;1;"708,68";"708,68";E.ON Energia S.p.A.;Z1F1EE2A79;SALDO Fatt.n. 40010474  del 01/12/2017 Le inviamo la bolletta relativa ai consumi del periodo dal 01/09/2017 al 31/10/2017 fornitura di gas PDR 01550000365420;13-12-2017;1720;0;210;1;Spese correnti;3;Acquisto di beni e servizi;1;Acquisto di beni;2;Altri beni di consumo;999;Altri beni e materiali di consumo n.a.c.;2017-12-13;
1176;1;"540,39";"540,39";E.ON Energia S.p.A.;Z1F1EE2A79;SALDO Fatt.n. 40010475  del 01/12/2017 Le inviamo la bolletta relativa ai consumi del periodo dal 01/10/2017 al 31/10/2017 fornitura di gas PDR 01550000365820;13-12-2017;1620;0;211;1;Spese correnti;3;Acquisto di beni e servizi;1;Acquisto di beni;2;Altri beni di consumo;1;"Carta, cancelleria e stampati";2017-12-13;
1177;1;"411,12";"411,12";ECO MEDICAL S.R.L.;ZE820B55F9;SALDO Fatt.n. 27PA  del 30/11/2017 VISITE MEDICHE RELAZIONE SOPRALLUOGO MEDICO E ELABORAZIONE PIANO DI SORVEGLIANZA SANITARIA;13-12-2017;214;0;389;1;Spese correnti;3;Acquisto di beni e servizi;1;Acquisto di beni;2;Altri beni di consumo;1;"Carta, cancelleria e stampati";2017-12-13;
1178;1;"28,10";"28,10";FRATERNITA' SISTEMI IMPRESA SOCIALE;ZF11D3CF9A;ACCONTO Fatt.n. 3/1938  del 17/11/2017 PREST.SERVIZI;13-12-2017;276;0;84;1;Spese correnti;3;Acquisto di beni e servizi;2;Acquisto di servizi;3;Aggi di riscossione;999;Altri aggi di riscossione n.a.c.;2017-12-13;
1179;1;"317,40";"317,40";GAMMA DARFO s.r.l. (forniture per uffici);Z441CCFFC8;SALDO Fatt.n. 408/PA  del 06/12/2017 Fattura accompagnatoria man./nol.PA CANONE FOTOCOPIATORE A COLORI;13-12-2017;214;0;58;1;Spese correnti;3;Acquisto di beni e servizi;1;Acquisto di beni;2;Altri beni di consumo;1;"Carta, cancelleria e stampati";2017-12-13;
1180;1;"290,36";"290,36";GAMMA DARFO s.r.l. (forniture per uffici);Z441CCFFC8;SALDO Fatt.n. 410/PA  del 06/12/2017 Fattura accompagnatoria man./nol.PA CANONE FOTOCOPIATORE;13-12-2017;214;0;58;1;Spese correnti;3;Acquisto di beni e servizi;1;Acquisto di beni;2;Altri beni di consumo;1;"Carta, cancelleria e stampati";2017-12-13;
1181;1;"151,61";"151,61";GAMMA DARFO s.r.l. (forniture per uffici);Z441CCFFC8;SALDO Fatt.n. 385/PA  del 30/11/2017 Fattura pubbliche amministrazioni FORNITURA CARTUCCE PER UFFICI;13-12-2017;214;0;58;1;Spese correnti;3;Acquisto di beni e servizi;1;Acquisto di beni;2;Altri beni di consumo;1;"Carta, cancelleria e stampati";2017-12-13;
1182;1;"43,94";"43,94";GAMMA DARFO s.r.l. (forniture per uffici);Z441CCFFC8;SALDO Fatt.n. 386/PA  del 30/11/2017 Fattura pubbliche amministrazioni FORNITURA CANCELLERIA PER UFFICI COMUNALI;13-12-2017;214;0;58;1;Spese correnti;3;Acquisto di beni e servizi;1;Acquisto di beni;2;Altri beni di consumo;1;"Carta, cancelleria e stampati";2017-12-13;
1183;1;"791,96";"791,96";IL BOTTEGHINO di Guizzetti Federica (Salumeria Alimenta;ZE81FB50AC;SALDO Fatt.n. 08 P.A.  del 30/11/2017 FORNITURA DERRATE ALIMENTARI PER MENSA SCOLASTICA NOVEMBRE 2017;13-12-2017;1930;0;306;1;Spese correnti;3;Acquisto di beni e servizi;1;Acquisto di beni;2;Altri beni di consumo;11;Generi alimentari;2017-12-13;
1184;1;"321,49";"321,49";STAZIONE SERVIZIO IP di Gualeni S.;ZF31CCE374;ACCONTO Fatt.n. 0000038/EL  del 30/11/2017;13-12-2017;1250;0;42;1;Spese correnti;3;Acquisto di beni e servizi;1;Acquisto di beni;2;Altri beni di consumo;2;"Carburanti, combustibili e lubrificanti";2017-12-13;
1185;1;"16,27";"16,27";STAZIONE SERVIZIO IP di Gualeni S.;ZF31CCE374;SALDO Fatt.n. 0000038/EL  del 30/11/2017;13-12-2017;4735;0;43;1;Spese correnti;3;Acquisto di beni e servizi;1;Acquisto di beni;2;Altri beni di consumo;2;"Carburanti, combustibili e lubrificanti";2017-12-13;
1186;1;"67,55";"67,55";I.C.A.P. DI ACCHIAPPATI BRUNO GIOVANNI;ZE720E8E47;SALDO Fatt.n. P00005  del 24/11/2017 Art. 17-ter del Dpr n. 633/1972 - Scissione dei pagamenti DM 23.1.2015 MATERIALE PER ADDOBBI NATALIZI;13-12-2017;6343;0;371;2;Spese in conto capitale;2;Investimenti fissi lordi e acquisto di terreni;1;Beni materiali;9;Beni immobili;12;Infrastrutture stradali;2017-12-13;
1187;1;"329,40";"329,40";I.C.A.P. DI ACCHIAPPATI BRUNO GIOVANNI;E8220E8E8;SALDO Fatt.n. P00004  del 24/11/2017 Art. 17-ter del Dpr n. 633/1972 - Scissione dei pagamenti DM 23.1.2015 FORNITURA CATENARIE ILLUMINAZIONE;13-12-2017;6343;0;372;2;Spese in conto capitale;2;Investimenti fissi lordi e acquisto di terreni;1;Beni materiali;9;Beni immobili;12;Infrastrutture stradali;2017-12-13;
1188;1;"503,36";"503,36";LA FORNERIA di Bertoletti M. & C. s.n.c.;ZE61FB5022;SALDO Fatt.n. 10 PA  del 12/12/2017 FATTURA P.A. FORNITURA DERRATE ALIMENTARI NOVEMBRE 2017;13-12-2017;1930;0;305;1;Spese correnti;3;Acquisto di beni e servizi;1;Acquisto di beni;2;Altri beni di consumo;11;Generi alimentari;2017-12-13;
1189;1;"960,00";"960,00";MENSI MILENA; ;PROGETTO BALLO COUNTRY C/O LA SCUOLA PRIMARIA A. FRUGONI;13-12-2017;1720;0;353;1;Spese correnti;3;Acquisto di beni e servizi;1;Acquisto di beni;2;Altri beni di consumo;999;Altri beni e materiali di consumo n.a.c.;2017-12-13;
1191;1;"412,50";"412,50";MARKET DUE LAGHI SRL;Z79209CC4D;ACCONTO Fatt.n. 5/E  del 23/10/2017;13-12-2017;5859;0;386;1;Spese correnti;3;Acquisto di beni e servizi;1;Acquisto di beni;2;Altri beni di consumo;11;Generi alimentari;2017-12-13;
1192;1;"843,50";"843,50";MARKET DUE LAGHI SRL;Z641D52219;SALDO Fatt.n. 5/E  del 23/10/2017;13-12-2017;5859;0;100;1;Spese correnti;3;Acquisto di beni e servizi;1;Acquisto di beni;2;Altri beni di consumo;11;Generi alimentari;2017-12-13;
1194;1;"956,66";"956,66";MACELLERIA PARIS LUCA;Z6F1FB506A;SALDO Fatt.n. 21/PA  del 30/11/2017 SOLTO: DETERMINA N.207 DEL18/09/2017  CIG: Z6F1FB506A FORNITURA DERRA TE ALIMENTARI MESE DI NOVEMBRE 2017;13-12-2017;1930;0;307;1;Spese correnti;3;Acquisto di beni e servizi;1;Acquisto di beni;2;Altri beni di consumo;11;Generi alimentari;2017-12-13;
1195;1;"535,08";"535,08";DITTA SIGNORINI CLAUDIO;ZD21FB4FA5;SALDO Fatt.n. 17/1  del 30/11/2017 FATTURA N. 17/1 DEL 30.11.2017 FORNITURA DERRATE ALIMENTARI PER MENSA SCOLASTICA NOVEMBRE 2017;13-12-2017;1930;0;308;1;Spese correnti;3;Acquisto di beni e servizi;1;Acquisto di beni;2;Altri beni di consumo;11;Generi alimentari;2017-12-13;
1196;1;"366,00";"366,00";VT VERIFICHE TECNICHE;Z1E20CC521;SALDO Fatt.n. 06/PA/2017  del 06/12/2017 VERIFICHE MESSA ATERRA EDIFICI SCOLASTICI;13-12-2017;1720;0;368;1;Spese correnti;3;Acquisto di beni e servizi;1;Acquisto di beni;2;Altri beni di consumo;999;Altri beni e materiali di consumo n.a.c.;2017-12-13;
1197;1;"207,40";"207,40";VAL CAVALLINA SERVIZI SRL;Z232007B2C;SALDO Fatt.n. 193/PE  del 30/11/2017 FATTURA IMMEDIATA (E) FORNITURA CONTENITORI PER SCUOLE;13-12-2017;1720;0;318;1;Spese correnti;3;Acquisto di beni e servizi;1;Acquisto di beni;2;Altri beni di consumo;999;Altri beni e materiali di consumo n.a.c.;2017-12-13;
1198;1;"695,40";"695,40";ZANELLA LUCA;Z3B20B71DC;SALDO Fatt.n. 23E  del 25/11/2017 ND RIPARAZIONE E SOSTITUZIONE VENTOLA CALDAIA CASA ANZIANI ESMATE;13-12-2017;6343;0;358;2;Spese in conto capitale;2;Investimenti fissi lordi e acquisto di terreni;1;Beni materiali;9;Beni immobili;12;Infrastrutture stradali;2017-12-13;
1226;1;"1.604,02";"1.604,02";COMUNE DI LOVERE; ;QUOTA COFINANZIAMENTO GESTIONE IAT ALTO SEBINO 2016/2017;14-12-2017;5440;0;387;1;Spese correnti;4;Trasferimenti correnti;4;Trasferimenti correnti a Istituzioni Sociali Private;1;Trasferimenti correnti a Istituzioni Sociali Private;1;Trasferimenti correnti a Istituzioni Sociali Private;2017-12-14;
1227;1;"1.395,81";"1.395,81";COMUNITA MONTANA DEI LAGHI BERGAMASCHI; ;GESTIONE ASSOCIATO SPORTELLO UNICO PER LE ATTIVITA' PRODUTTIVE SUAP;14-12-2017;670;0;127;1;Spese correnti;10;Altre spese correnti;99;Altre spese correnti n.a.c.;99;Altre spese correnti n.a.c.;999;Altre spese correnti n.a.c.;2017-12-14;
1228;1;"63,61";"63,61";COMUNITA MONTANA DEI LAGHI BERGAMASCHI; ;INTEGRAZIONE SPORTELLO UNICO PER LE ATTIVITA' SUAP 2017;14-12-2017;5440;0;381;1;Spese correnti;4;Trasferimenti correnti;4;Trasferimenti correnti a Istituzioni Sociali Private;1;Trasferimenti correnti a Istituzioni Sociali Private;1;Trasferimenti correnti a Istituzioni Sociali Private;2017-12-14;
1229;1;"1.471,44";"1.471,44";COMUNITA MONTANA DEI LAGHI BERGAMASCHI; ;SERVIZIO SAD ANNO 2017;14-12-2017;4440;0;365;1;Spese correnti;4;Trasferimenti correnti;2;Trasferimenti correnti a Famiglie;5;Altri trasferimenti a famiglie;999;Altri trasferimenti a famiglie n.a.c.;2017-12-14;
1230;1;"717,52";"717,52";COMUNITA MONTANA DEI LAGHI BERGAMASCHI; ;SPESA PER SERVIZIO MINORI 2017;14-12-2017;4440;0;380;1;Spese correnti;4;Trasferimenti correnti;2;Trasferimenti correnti a Famiglie;5;Altri trasferimenti a famiglie;999;Altri trasferimenti a famiglie n.a.c.;2017-12-14;
1231;1;"700,00";"700,00";COMUNITA MONTANA DEI LAGHI BERGAMASCHI; ;SPESA BANCO ALIMENTARE 2017;14-12-2017;4440;0;399;1;Spese correnti;4;Trasferimenti correnti;2;Trasferimenti correnti a Famiglie;5;Altri trasferimenti a famiglie;999;Altri trasferimenti a famiglie n.a.c.;2017-12-14;
1233;1;"529,75";"529,75";AGENZIA ENTRATE; ;SPESA PER SANZIONE AMMINISTRATIVA - MANCATO ACCATASTAMENTO - BG0166368/2017;14-12-2017;214;0;400;1;Spese correnti;3;Acquisto di beni e servizi;1;Acquisto di beni;2;Altri beni di consumo;1;"Carta, cancelleria e stampati";2017-12-14;
1234;1;"813,07";"813,07";P. A. CONSULTING; ;SALDO Fatt.n. 20/232  del 13/12/2017 GESTIONE PAGHE IV TRIMESTRE 2017;14-12-2017;214;0;45;1;Spese correnti;3;Acquisto di beni e servizi;1;Acquisto di beni;2;Altri beni di consumo;1;"Carta, cancelleria e stampati";2017-12-14;
1237;1;"4.990,00";"4.990,00";AGRISERVICE di Carrara Aristide & C. s.n.c.;Z65213F7F0;SALDO Fatt.n. 6/PA  del 14/12/2017 FORNITURA MATERIALE PER PROTEZIONE CIVILE;15-12-2017;6350;0;402;2;Spese in conto capitale;5;Altre spese in conto capitale;99;Altre spese in conto capitale n.a.c.;99;Altre spese in conto capitale n.a.c.;999;Altre spese in conto capitale n.a.c.;2017-12-15;
1238;1;"189,34";"189,34";I.C.A.P. DI ACCHIAPPATI BRUNO GIOVANNI;ZA4213EB81;SALDO Fatt.n. P00007  del 14/12/2017 Art. 17-ter del Dpr n. 633/1972 - Scissione dei pagamenti DM 23.1.2015 FORNITURA ARREDO URBANO ADDOBBI NATALIZI;15-12-2017;6343;0;396;2;Spese in conto capitale;2;Investimenti fissi lordi e acquisto di terreni;1;Beni materiali;9;Beni immobili;12;Infrastrutture stradali;2017-12-15;
1241;1;"72,10";"288,40";AGENZIA ENTRATE; ;PROROGA CONTRATTI AFFITTO CASA ANZIANI;16-12-2017;214;0;384;1;Spese correnti;3;Acquisto di beni e servizi;1;Acquisto di beni;2;Altri beni di consumo;1;"Carta, cancelleria e stampati";2017-12-16;
1241;2;"72,10";"288,40";AGENZIA ENTRATE; ;PROROGA CONTRATTI AFFITTO CASA ANZIANI;16-12-2017;214;0;384;1;Spese correnti;3;Acquisto di beni e servizi;1;Acquisto di beni;2;Altri beni di consumo;1;"Carta, cancelleria e stampati";2017-12-16;
1241;3;"72,10";"288,40";AGENZIA ENTRATE; ;PROROGA CONTRATTI AFFITTO CASA ANZIANI;16-12-2017;214;0;384;1;Spese correnti;3;Acquisto di beni e servizi;1;Acquisto di beni;2;Altri beni di consumo;1;"Carta, cancelleria e stampati";2017-12-16;
1241;4;"72,10";"288,40";AGENZIA ENTRATE; ;PROROGA CONTRATTI AFFITTO CASA ANZIANI;16-12-2017;214;0;384;1;Spese correnti;3;Acquisto di beni e servizi;1;Acquisto di beni;2;Altri beni di consumo;1;"Carta, cancelleria e stampati";2017-12-16;
1242;1;"195,76";"195,76";QCOM INTERACTIVE SOLUTION;Z8D1D42A4E;ACCONTO Fatt.n. 002092/PA  del 31/10/2017;16-12-2017;214;0;86;1;Spese correnti;3;Acquisto di beni e servizi;1;Acquisto di beni;2;Altri beni di consumo;1;"Carta, cancelleria e stampati";2017-12-16;
1243;1;"43,85";"43,85";QCOM INTERACTIVE SOLUTION;Z8D1D42A4E;SALDO Fatt.n. 002092/PA  del 31/10/2017;16-12-2017;214;0;86;1;Spese correnti;3;Acquisto di beni e servizi;1;Acquisto di beni;2;Altri beni di consumo;1;"Carta, cancelleria e stampati";2017-12-16;
1246;1;"565,49";"565,49";CASSA DD.PP.; ;QUOTA CAPITALE MUTUI;18-12-2017;5855;0;376;1;Spese correnti;7;Interessi passivi;5;Interessi su Mutui e altri finanziamenti a medio lungo termine;4;Interessi passivi su finanziamenti a medio lungo termine a Imprese;3;Interessi passivi a Cassa Depositi e Prestiti SPA su mutui e altri finanziamenti a medio lungo termine;2017-12-18;
1247;1;"1.393,10";"1.393,10";CASSA DD.PP.; ;RIMBORSO MUTUI ANNO 2017;18-12-2017;5835;0;377;1;Spese correnti;10;Altre spese correnti;99;Altre spese correnti n.a.c.;99;Altre spese correnti n.a.c.;999;Altre spese correnti n.a.c.;2017-12-18;
1248;1;"820,20";"820,20";CASSA DD.PP.; ;RIMBORSO QUOTA CAPITALE MUTUI 2017;18-12-2017;5850;0;378;1;Spese correnti;7;Interessi passivi;5;Interessi su Mutui e altri finanziamenti a medio lungo termine;4;Interessi passivi su finanziamenti a medio lungo termine a Imprese;999;Interessi passivi a altre imprese su finanziamenti a medio lungo termine;2017-12-18;
1250;1;"13.440,99";"13.440,99";CASSA DD.PP.; ;"Quota  Interesse Ammortam. Mutuo a carico ente di      783.659,36 x Anno 2017";18-12-2017;5855;0;23;1;Spese correnti;7;Interessi passivi;5;Interessi su Mutui e altri finanziamenti a medio lungo termine;4;Interessi passivi su finanziamenti a medio lungo termine a Imprese;3;Interessi passivi a Cassa Depositi e Prestiti SPA su mutui e altri finanziamenti a medio lungo termine;2017-12-18;
1251;1;"757,25";"757,25";MEF - MUTUI; ;"Quota  Interesse Ammortam. Mutuo a carico ente di       61.042,99 x Anno 2017";18-12-2017;5855;0;22;1;Spese correnti;7;Interessi passivi;5;Interessi su Mutui e altri finanziamenti a medio lungo termine;4;Interessi passivi su finanziamenti a medio lungo termine a Imprese;3;Interessi passivi a Cassa Depositi e Prestiti SPA su mutui e altri finanziamenti a medio lungo termine;2017-12-18;
1252;1;"931,21";"931,21";MEF - MUTUI; ;"Quota  Interesse Ammortam. Mutuo a carico ente di      129.491,31 x Anno 2017";18-12-2017;3250;0;17;1;Spese correnti;7;Interessi passivi;5;Interessi su Mutui e altri finanziamenti a medio lungo termine;4;Interessi passivi su finanziamenti a medio lungo termine a Imprese;3;Interessi passivi a Cassa Depositi e Prestiti SPA su mutui e altri finanziamenti a medio lungo termine;2017-12-18;
1253;1;"813,17";"813,17";MEF - MUTUI; ;"Quota  Interesse Ammortam. Mutuo a carico ente di       65.315,90 x Anno 2017";18-12-2017;4775;0;20;1;Spese correnti;7;Interessi passivi;5;Interessi su Mutui e altri finanziamenti a medio lungo termine;4;Interessi passivi su finanziamenti a medio lungo termine a Imprese;3;Interessi passivi a Cassa Depositi e Prestiti SPA su mutui e altri finanziamenti a medio lungo termine;2017-12-18;
1254;1;"3.474,38";"3.474,38";MEF - MUTUI; ;"Quota  Interesse Ammortam. Mutuo a carico ente di      288.703,54 x Anno 2017";18-12-2017;4446;0;19;1;Spese correnti;7;Interessi passivi;5;Interessi su Mutui e altri finanziamenti a medio lungo termine;4;Interessi passivi su finanziamenti a medio lungo termine a Imprese;4;Interessi passivi a Cassa Depositi e Prestiti - Gestione Tesoro su mutui e altri finanziamenti a medio lungo termine;2017-12-18;
1255;1;"282,53";"282,53";MEF - MUTUI; ;"Quota  Interesse Ammortam. Mutuo a carico ente di      315.956,69 x Anno 2017";18-12-2017;1722;0;16;1;Spese correnti;7;Interessi passivi;5;Interessi su Mutui e altri finanziamenti a medio lungo termine;4;Interessi passivi su finanziamenti a medio lungo termine a Imprese;3;Interessi passivi a Cassa Depositi e Prestiti SPA su mutui e altri finanziamenti a medio lungo termine;2017-12-18;
1256;1;"1.232,65";"1.232,65";MEF - MUTUI; ;"Quota  Interesse Ammortam. Mutuo a carico ente di      111.970,13 x Anno 2017";18-12-2017;1723;0;12;1;Spese correnti;7;Interessi passivi;5;Interessi su Mutui e altri finanziamenti a medio lungo termine;4;Interessi passivi su finanziamenti a medio lungo termine a Imprese;3;Interessi passivi a Cassa Depositi e Prestiti SPA su mutui e altri finanziamenti a medio lungo termine;2017-12-18;
1257;1;"537,29";"537,29";MEF - MUTUI; ;"Quota  Interesse Ammortam. Mutuo a carico ente di      245.785,38 x Anno 2017";18-12-2017;4248;0;18;1;Spese correnti;7;Interessi passivi;5;Interessi su Mutui e altri finanziamenti a medio lungo termine;4;Interessi passivi su finanziamenti a medio lungo termine a Imprese;4;Interessi passivi a Cassa Depositi e Prestiti - Gestione Tesoro su mutui e altri finanziamenti a medio lungo termine;2017-12-18;
1258;1;"1.856,74";"1.856,74";MEF - MUTUI; ;"Quota  Interesse Ammortam. Mutuo a carico ente di      315.956,69 x Anno 2017";18-12-2017;1722;0;16;1;Spese correnti;7;Interessi passivi;5;Interessi su Mutui e altri finanziamenti a medio lungo termine;4;Interessi passivi su finanziamenti a medio lungo termine a Imprese;3;Interessi passivi a Cassa Depositi e Prestiti SPA su mutui e altri finanziamenti a medio lungo termine;2017-12-18;
1259;1;"162,35";"162,35";MEF - MUTUI; ;"Quota  Interesse Ammortam. Mutuo a carico ente di      111.970,13 x Anno 2017";18-12-2017;1723;0;12;1;Spese correnti;7;Interessi passivi;5;Interessi su Mutui e altri finanziamenti a medio lungo termine;4;Interessi passivi su finanziamenti a medio lungo termine a Imprese;3;Interessi passivi a Cassa Depositi e Prestiti SPA su mutui e altri finanziamenti a medio lungo termine;2017-12-18;
1260;1;"2.421,59";"2.421,59";MEF - MUTUI; ;"Quota  Interesse Ammortam. Mutuo a carico ente di      245.785,38 x Anno 2017";18-12-2017;4248;0;18;1;Spese correnti;7;Interessi passivi;5;Interessi su Mutui e altri finanziamenti a medio lungo termine;4;Interessi passivi su finanziamenti a medio lungo termine a Imprese;4;Interessi passivi a Cassa Depositi e Prestiti - Gestione Tesoro su mutui e altri finanziamenti a medio lungo termine;2017-12-18;
1261;1;"941,33";"941,33";ISTITUTO PER IL CREDITO SPORTIVO; ;"Quota  Capitale  Ammortam. Mutuo a carico ente di       41.488,55 x Anno 2017";18-12-2017;5855;0;13;1;Spese correnti;7;Interessi passivi;5;Interessi su Mutui e altri finanziamenti a medio lungo termine;4;Interessi passivi su finanziamenti a medio lungo termine a Imprese;3;Interessi passivi a Cassa Depositi e Prestiti SPA su mutui e altri finanziamenti a medio lungo termine;2017-12-18;
1262;1;"146,96";"146,96";ISTITUTO PER IL CREDITO SPORTIVO; ;"Quota  Interesse Ammortam. Mutuo a carico ente di       41.488,55 x Anno 2017";18-12-2017;4777;0;21;1;Spese correnti;7;Interessi passivi;5;Interessi su Mutui e altri finanziamenti a medio lungo termine;4;Interessi passivi su finanziamenti a medio lungo termine a Imprese;3;Interessi passivi a Cassa Depositi e Prestiti SPA su mutui e altri finanziamenti a medio lungo termine;2017-12-18;
1263;1;"860,99";"860,99";FINLOMBARDA S.p.A. Gesione Autonoma Fondi Regionali; ;Quota  Capitale  Ammortam. Mutuo a carico ente di;18-12-2017;5855;0;13;1;Spese correnti;7;Interessi passivi;5;Interessi su Mutui e altri finanziamenti a medio lungo termine;4;Interessi passivi su finanziamenti a medio lungo termine a Imprese;3;Interessi passivi a Cassa Depositi e Prestiti SPA su mutui e altri finanziamenti a medio lungo termine;2017-12-18;
1264;1;"39,48";"39,48";FINLOMBARDA S.p.A. Gesione Autonoma Fondi Regionali; ;Quota  Interesse Ammortam. Mutuo a carico ente di;18-12-2017;4777;0;21;1;Spese correnti;7;Interessi passivi;5;Interessi su Mutui e altri finanziamenti a medio lungo termine;4;Interessi passivi su finanziamenti a medio lungo termine a Imprese;3;Interessi passivi a Cassa Depositi e Prestiti SPA su mutui e altri finanziamenti a medio lungo termine;2017-12-18;
1265;1;"715,00";"715,00";AUTONOLEGGIO VALCALEPIO DI CRISTINELLI TOMASINO & C. S.;ZD0200D3F6;SALDO Fatt.n. 103/2017  del 15/12/2017 SERVIZIO TRASPORTO A LOVERE PER CORSO NUOTO 2017 IVA DA VERSARE A CURA DEL CESSIONARIO O COMMITTENTE AI SENSI DELL'ART.17TER DEL DPR 633/1972 CONTO DEDICATO LEGGE N. 136/2010;18-12-2017;1720;0;316;1;Spese correnti;3;Acquisto di beni e servizi;1;Acquisto di beni;2;Altri beni di consumo;999;Altri beni e materiali di consumo n.a.c.;2017-12-18;
1267;1;"176,63";"176,63";MULTIUTILITY S.P.A.;Z461DB31F0;ACCONTO Fatt.n. 41704232933  del 28/11/2017 energia elettrica periodo 01/10/2017 31/10/2017 conto contrattuale 40000852 COMUNE DI SOLTO COLLINA -;19-12-2017;214;0;117;1;Spese correnti;3;Acquisto di beni e servizi;1;Acquisto di beni;2;Altri beni di consumo;1;"Carta, cancelleria e stampati";2017-12-19;
1268;1;"4.299,45";"4.299,45";MULTIUTILITY S.P.A.;ZE21DB32CE;ACCONTO Fatt.n. 41704232934  del 28/11/2017 energia elettrica periodo 01/10/2017 31/10/2017 conto contrattuale 40000853 COMUNE DI SOLTO COLLINA -;19-12-2017;4785;0;116;1;Spese correnti;3;Acquisto di beni e servizi;2;Acquisto di servizi;5;Utenze e canoni;4;Energia elettrica;2017-12-19;
1269;1;"610,55";"610,55";MULTIUTILITY S.P.A.;ZE21DB32CE;ACCONTO Fatt.n. 41704232934  del 28/11/2017 energia elettrica periodo 01/10/2017 31/10/2017 conto contrattuale 40000853 COMUNE DI SOLTO COLLINA -;19-12-2017;4785;0;116;1;Spese correnti;3;Acquisto di beni e servizi;2;Acquisto di servizi;5;Utenze e canoni;4;Energia elettrica;2017-12-19;
1270;1;"336,33";"336,33";MULTIUTILITY S.P.A.;ZE21DB32CE;SALDO Fatt.n. 41704232934  del 28/11/2017 energia elettrica periodo 01/10/2017 31/10/2017 conto contrattuale 40000853 COMUNE DI SOLTO COLLINA -;19-12-2017;1620;0;385;1;Spese correnti;3;Acquisto di beni e servizi;1;Acquisto di beni;2;Altri beni di consumo;1;"Carta, cancelleria e stampati";2017-12-19;
1271;1;"39,64";"39,64";MULTIUTILITY S.P.A.;Z461DB31F0;SALDO Fatt.n. 41704232933  del 28/11/2017 energia elettrica periodo 01/10/2017 31/10/2017 conto contrattuale 40000852 COMUNE DI SOLTO COLLINA -;19-12-2017;214;0;117;1;Spese correnti;3;Acquisto di beni e servizi;1;Acquisto di beni;2;Altri beni di consumo;1;"Carta, cancelleria e stampati";2017-12-19;
1274;1;"130,48";"130,48";ANAS SPA UFFICIO DICOMPETENZA; ;"SALDO Fatt.n. 0074003297  del 16/12/2017 Fatt. Lic&amp;Concess. CANONE CONCESSIONE ACQUA";20-12-2017;214;0;410;1;Spese correnti;3;Acquisto di beni e servizi;1;Acquisto di beni;2;Altri beni di consumo;1;"Carta, cancelleria e stampati";2017-12-20;
1276;1;"427,00";"427,00";CITTA' DI CLUSONE; ;SPESA PER FUNZIONAMENTO SOTTOCOMMISSIONE ELETTORALE CIRCONDARIALE ANNO 2017 - ACCONTO 1 SEMESTRE;20-12-2017;235;0;319;1;Spese correnti;4;Trasferimenti correnti;1;Trasferimenti correnti a Amministrazioni Pubbliche;2;Trasferimenti correnti a Amministrazioni Locali;999;Trasferimenti correnti a altre Amministrazioni Locali n.a.c.;2017-12-20;
1277;1;"83,00";"83,00";AGENZIA FISCALE; ;DELEGHE FISCO/INPS/REGIONI;23-12-2017;214;0;415;1;Spese correnti;3;Acquisto di beni e servizi;1;Acquisto di beni;2;Altri beni di consumo;1;"Carta, cancelleria e stampati";2017-12-23;
1278;1;"2,00";"2,00";INTESA SANPAOLO; ;INTERESSI PASSIVI (BOLLI A CARICO ENTE);30-12-2017;5850;0;120;1;Spese correnti;7;Interessi passivi;5;Interessi su Mutui e altri finanziamenti a medio lungo termine;4;Interessi passivi su finanziamenti a medio lungo termine a Imprese;999;Interessi passivi a altre imprese su finanziamenti a medio lungo termine;2017-12-30;
